{"text_format":"1","workbook":"xlsx","n_sheets":7,"sheets":["ACTA","ARBITRES","ALINEABLES","jugcopafem","NO ALINEABLES","equips","actescf.txt"],"not_rendered":{"charts":0,"images":0,"macros":1,"external_links":0,"defined_names":24,"comments":0,"pivot_tables":0},"unopened":[],"bounds":{"document_bytes":16777216,"sheet_cells":100000,"rows_first":2000,"rows_last":500,"rows_between":2000,"halvings":0,"cell_chars":16384,"cell_head_chars":4096},"cells_cut":0,"cells_raw":0,"read":"whole","date_system":"1900"}

{"sheet":"ACTA","index":0,"n_rows":63,"n_cols":128,"rows_kept":63,"cut":false,"hidden":false,"merged":[[3,7,4,8],[3,9,4,17],[8,1,9,3],[8,15,9,17],[13,18,13,25],[14,18,14,25],[15,18,15,25],[8,4,8,6],[8,18,8,20],[10,18,10,25],[3,1,4,2],[6,1,7,10],[9,4,9,14],[3,3,4,6],[10,2,10,3],[17,1,18,1],[11,12,11,14],[14,12,14,14],[12,4,12,11],[14,2,14,3],[11,2,11,3],[12,2,12,3],[18,2,18,3],[15,4,15,11],[16,2,16,3],[18,26,18,28],[17,2,17,3],[18,16,18,17],[17,16,17,17],[17,12,17,14],[18,12,18,14],[12,26,12,28],[15,2,15,3],[18,18,18,25],[15,16,15,17],[16,4,16,11],[13,2,13,3],[18,4,18,11],[15,12,15,14],[10,39,10,40],[15,26,15,28],[11,4,11,11],[23,30,24,42],[14,26,14,28],[11,18,11,25],[14,4,14,11],[14,16,14,17],[16,12,16,14],[17,42,18,42],[17,38,18,38],[13,12,13,14],[10,16,10,17],[11,16,11,17],[10,4,10,11],[10,12,10,14],[13,4,13,11],[17,15,18,15],[17,4,17,11],[12,16,12,17],[12,12,12,14],[13,16,13,17],[17,26,17,28],[16,16,16,17],[3,28,3,30],[3,24,3,27],[10,35,10,36],[10,29,10,30],[10,31,10,32],[17,18,17,25],[4,31,4,32],[8,26,8,28],[12,18,12,25],[10,33,10,34],[4,22,4,23],[9,18,9,28],[3,20,4,21],[16,18,16,25],[3,31,3,32],[3,22,3,23],[11,26,11,28],[16,26,16,28],[13,26,13,28],[3,18,4,19],[25,35,25,42],[25,30,25,34],[17,30,18,30],[17,31,18,31],[4,28,4,30],[10,26,10,28],[17,29,18,29],[17,36,18,36],[17,35,18,35],[17,33,18,33],[4,24,4,27],[7,31,7,32],[8,31,8,32],[21,39,21,42],[17,37,18,37],[17,39,18,39],[20,29,20,38],[17,34,18,34],[17,32,18,32],[10,41,10,42],[19,33,19,35],[17,41,18,41],[10,37,10,38],[17,40,18,40]]}
[null,null,null,null,null,null,null,null,null,null,null,null,null,null,null,{"$f":"\"T:\\TEMPORADA 22 - 23\\AREA ESPORTIVA\\COMPETICIO\\COPA FEMENINA\\ACTES\\PDFS\\\"&D4&\"-\"&ALINEABLES!D5&\"-\"&ALINEABLES!L5","v":{"$error":"#N/A"}}]
[null,"FEDERACIÓ CATALANA DE TENNIS DE TAULA - COMUNICACIÓ DE RESULTATS I ACTA - COPA CATALANA FEMENINA - TEMPORADA 2022/2023",null,null,null,null,null,null,null,null,null,null,null,null,null,null,null,null,null,null,null,null,null,null,null,null,null,null,null,null,null,null,null,null,null,null,null,null,null,null,null,null,null,null,null,"v.5"]
[null,null,null,null,null,null,null,null,null,"SEU:",null,null,null,null,null,null,null,null,null,null,null,null,null,null,null,null,null,null,null,null,null,null,null,null,null,null,null,null,null,null,null,null,null,null,null,null,null,null,null,null,null,null,null,null,null,null,null,null,null,null,null,null,null,null,null,null,null,null,null,null,null,null,null,null,null,null,null,null,null,null,null,null,null,null,null,null,null,null,null,null,null,null,null,{"$f":"IFERROR(MATCH(#REF!,#REF!,0),\"\")","v":""}]
[{"$f":"IF(S7=\"\",0,1)","v":1},"ACTA:",null,null,null,null,null,null,null,{"$f":"IF(AF8<>\"\",AH8,IFERROR(VLOOKUP(D4,actes,8,0),\"\"))","v":""},null,null,null,null,null,null,null,null," GR:",null,{"$f":"LEFT(D4,2)","v":""},null,"  Dia:",null,{"$f":"IFERROR(VLOOKUP(D4,ACTES5,2,0),\"\")","v":""},null,null,null,"Local:",null,null,{"$f":"IF(AF8<>\"\",AF8,IFERROR(VLOOKUP(D4,actes,4,0),\"\"))","v":""},null,{"$f":"IF(AF8<>\"\",AH8,IFERROR(VLOOKUP(D4,actes,5,0),\"\"))","v":""},null,null,null,null,null,null,null,null,null,null,null,null,null,null,null,null,null,null,null,null,null,null,null,null,null,null,null,null,null,null,null,null,null,null,null,null,null,null,null,null,null,null,null,null,null,null,null,null,null,null,null,null,null,null,null,null,null,null,null,{"$f":"IFERROR(CP3+1,\"\")","v":""},"V2 Faltaven llicències A.LLIÇÀ"]
[{"$f":"IF(S8=\"\",0,1)","v":0},null,null,null,null,null,null,null,null,null,null,null,null,null,null,null,null,null,null,null,null,null,"Hora:",null,{"$f":"IFERROR(VLOOKUP(D4,ACTES5,3,0),\"\")","v":""},null,null,null,"Visitant:",null,null,{"$f":"IF(AF9<>\"\",AF9,IFERROR(VLOOKUP(D4,actes,6,0),\"\"))","v":""},null,{"$f":"IF(AF9<>\"\",AH9,IFERROR(VLOOKUP(D4,actes,7,0),\"\"))","v":""},null,null,null,null,null,null,null,null,null,null,null,null,null,null,null,null,null,null,null,null,null,null,null,null,null,null,null,null,null,null,null,null,null,null,null,null,null,null,null,null,null,null,null,null,null,null,null,null,null,null,null,null,null,null,null,null,null,null,null,{"$f":"IFERROR(CP4+1,\"\")","v":""},"V3 No arribava el rang al final a alineables"]
[{"$f":"A4&A5","v":"10"},null,null,null,null,null,null,null,{"$f":"IF(ISERROR(D4),\"E\",\"\")","v":""},null,null,null,null,null,null,null,null,null,null,null,null,null,null,null,null,null,null,null,null,null,null,null,null,null,null,null,null,null,null,null,null,null,null,null,null,null,null,null,null,null,null,null,null,null,null,null,null,null,null,null,null,null,null,null,null,null,null,null,null,null,null,null,null,null,null,null,null,null,null,null,null,null,null,null,null,null,null,null,null,null,null,null,null,"","V3 Captura número d¡àrbitre"]
[null,"Assignar lletres (Obligatori)",null,null,null,null,null,null,null,null,null," Local juga amb \"ABC\"",null,null,null,null,null,null,"x"," <- Poseu una \"x\" o deixeu en blanc",null,null,null,null,null,null,null,null,null,null,null,"Introducció manual d'equip (Posar núm d'equip)",null,null,null,null,null,null,null,null,null,null,null,null,null,null,null,null,null,null,null,null,null,null,null,null,null,null,null,null,null,null,null,null,null,null,null,null,null,null,null,null,null,null,null,null,null,null,null,null,null,null,null,null,null,null,null,null,null,null,null,null,null,"","V4 arreglat capura guanyador"]
[null,null,null,null,null,null,null,null,null,null,null," Local juga amb \"YXZ\"",null,null,null,null,null,null,null," <- Poseu una \"x\" o deixeu en blanc",null,null,null,null,null,null,null,null,null,null,null,null,null,{"$f":"IF(AF8<>\"\",VLOOKUP(AF8,equips,2,0),\"\")","v":""},null,null,null,null,null,null,null,null,null,null,null,null,null,null,null,null,null,null,null,null,null,null,null,null,null,null,null,null,null,null,null,null,null,null,null,null,null,null,null,null,null,null,null,null,null,null,null,null,null,null,null,null,null,null,null,null,null,null,null,"","V5","arreglat guanyador"]
[null,"Eq.ABC",null,null,{"$f":"IFERROR(IF(A6=\"11\",\"ERROR\",IF(A6=\"00\",\"\",IF(A4=1,AF4*1,AF5*1))),\"\")","v":""},null,null,null,null,null,null,null,null,null,null,"Eq.XYZ",null,null,{"$f":"IFERROR(IF(A6=\"11\",\"ERROR\",IF(A6=\"00\",\"\",IF(A4=1,AF5*1,AF4*1))),\"\")","v":""},null,null,null,null,null,null,null,null,null,null,null,null,null,null,{"$f":"IF(AF9<>\"\",VLOOKUP(AF9,equips,2,0),\"\")","v":""},null,null,null,null,null,null,null,null,null,null,null,null,null,null,null,null,null,null,null,null,null,null,null,null,null,null,null,null,null,null,null,null,null,null,null,null,null,null,null,null,null,null,null,null,null,null,null,null,null,null,null,null,null,null,null,null,null,null,null,""]
[null,null,null,null,{"$f":"IF(A6=\"11\",\"ERROR\",IF(A6=\"00\",\"\",IF(A4=1,AH4,AH5)))","v":""},null,null,null,null,null,null,null,null,null,null,null,null,null,{"$f":"IF(A6=\"11\",\"ERROR\",IF(A6=\"00\",\"\",IF(A4=1,AH5,AH4)))","v":""},null,null,null,null,null,null,null,null,null,null,null,null,null,null,null,null,null,null,null,null,null,null,null,null,null,null,null,null,null,null,null,null,null,null,null,null,null,null,null,null,null,null,null,null,null,null,null,null,null,null,null,null,null,null,null,null,null,null,null,null,null,null,null,null,null,null,null,null,null,null,null,null,null,null,""]
[null,"Ll",null,null,"Jugador",null,null,null,null,null,null,null,"Club",null,null,"Ll","NP",null,"Jugador",null,null,null,null,null,null,null,"Club",null,null,"1r joc",null,"2n joc",null,"3r joc",null,"4t joc",null,"5è joc",null,"Parcial",null,"General",null,null,null,null,null,null,null,null,null,null,null,null,null,null,null,null,null,null,null,null,null,null,null,null,null,null,null,null,null,null,null,null,null,null,null,null,null,null,null,null,null,null,null,null,null,null,null,null,null,null,null,""]
[null,"A",null,null,{"$f":"IFERROR(IF(D4=\"\",\"\",IF(A6=\"FALSOFALSO\",\"Falta assignar lletres\",IF(I6=\"E\",\"Falta determinar encontre\",IF(C12<>\"\",VLOOKUP(C12,_pers2,2,0),\"\")))),\"\")","v":""},null,null,null,null,null,null,null,{"$f":"IFERROR(IF(CF20=1,\"\",IF(A6=\"FALSOFALSO\",\"\",IF(I6=\"E\",\"\",IF(C12<>\"\",VLOOKUP(C12,_pers2,6,0),\"\")))),\"\")","v":""},null,null,"X",null,null,{"$f":"IFERROR(IF(Q12<>\"\",VLOOKUP(Q12,_pers2,2,0),\"\"),\"NO LLIC\")","v":""},null,null,null,null,null,null,null,{"$f":"IFERROR(IF(CF20=1,\"\",IF(A6=\"FALSOFALSO\",\"\",IF(I6=\"E\",\"\",IF(Q12<>\"\",VLOOKUP(Q12,_pers2,6,0),\"\")))),\"\")","v":""},null,null,null,null,null,null,null,null,null,null,null,null,{"$f":"IF(BA12+BG12>2,BA12,\"\")","v":""},{"$f":"IF(BA12+BG12>2,BG12,\"\")","v":""},{"$f":"IF(BI12+BJ12<>0,BI12,\"\")","v":""},{"$f":"IF(BI12+BJ12<>0,BJ12,\"\")","v":""},null,null,null,null,{"$f":"IF(AD12>AE12,1,0)","v":0},{"$f":"IF(AF12>AG12,1,0)","v":0},{"$f":"IF(AH12>AI12,1,0)","v":0},{"$f":"IF(AJ12>AK12,1,0)","v":0},{"$f":"IF(AL12>AM12,1,0)","v":0},{"$f":"SUM(AV12:AZ12)","v":0},{"$f":"IF(AE12>AD12,1,0)","v":0},{"$f":"IF(AG12>AF12,1,0)","v":0},{"$f":"IF(AI12>AH12,1,0)","v":0},{"$f":"IF(AK12>AJ12,1,0)","v":0},{"$f":"IF(AM12>AL12,1,0)","v":0},{"$f":"SUM(BB12:BF12)","v":0},null,{"$f":"IF(BA12>2,1,0)","v":0},{"$f":"IF(BG12>2,1,0)","v":0},null,null,null,null,null,null,null,null,null,null,null,null,null,null,null,null,null,null,null,null,null,null,null,null,null,null,null,null,null,null,null,""]
[null,"B",null,null,{"$f":"IFERROR(IF(C13<>\"\",VLOOKUP(C13,_pers2,2,0),\"\"),\"NO LLIC\")","v":""},null,null,null,null,null,null,null,{"$f":"IF(CF21=1,\"\",IF(A6=\"FALSOFALSO\",\"\",IF(I7=\"E\",\"\",IF(C13<>\"\",VLOOKUP(C13,_pers2,6,0),\"\"))))","v":""},null,null,"Y",null,null,{"$f":"IFERROR(IF(Q13<>\"\",VLOOKUP(Q13,_pers2,2,FALSE),\"\"),\"NO LLIC\")","v":""},null,null,null,null,null,null,null,{"$f":"IFERROR(IF(CF21=1,\"\",IF(A6=\"FALSOFALSO\",\"\",IF(6=\"E\",\"\",IF(Q13<>\"\",VLOOKUP(Q13,_pers2,6,0),\"\")))),\"\")","v":""},null,null,null,null,null,null,null,null,null,null,null,null,"","",{"$f":"IF(BI13+BJ13<>0,BI12+BI13,\"\")","v":""},{"$f":"IF(BI13+BJ13<>0,BJ12+BJ13,\"\")","v":""},null,null,null,null,0,0,0,0,0,0,0,0,0,0,0,0,null,{"$f":"IF(BA13>2,1,0)","v":0},{"$f":"IF(BG13>2,1,0)","v":0},null,null,null,null,null,null,null,null,null,null,null,null,null,null,null,null,null,null,null,null,null,null,null,null,null,null,null,null,null,null,null,""]
[null,"db",{"$f":"C18&\"  \"&C19","v":"  "},null,{"$f":"E18&\" /  \"&E19","v":" /  "},null,null,null,null,null,null,null,{"$f":"M18","v":""},null,null,"db",{"$f":"Q18&\"  \"&Q19","v":"  "},null,{"$f":"S18&\" /  \"&S19","v":" /  "},null,null,null,null,null,null,null,{"$f":"AA18","v":""},null,null,null,null,null,null,null,null,null,null,null,null,"","",{"$f":"IF(BI14+BJ14<>0,AP13+BI14,\"\")","v":""},{"$f":"IF(BI14+BJ14<>0,AQ13+BJ14,\"\")","v":""},null,null,null,null,0,0,0,0,0,0,0,0,0,0,0,0,null,0,0,null,null,null,null,null,null,null,null,null,null,null,null,null,null,null,null,null,null,null,null,null,null,null,null,null,null,null,null,null,null,null,""]
[null,"A",{"$f":"IF(C12<>0,C12,\"\")","v":""},null,{"$f":"IFERROR(IF(C15<>\"\",VLOOKUP(C15,_pers2,2,0),\"\"),\"NO LLIC\")","v":""},null,null,null,null,null,null,null,{"$f":"IFERROR(IF(CF23=1,\"\",IF(A9=\"FALSOFALSO\",\"\",IF(I9=\"E\",\"\",IF(C15<>\"\",VLOOKUP(C15,_pers2,6,0),\"\")))),\"\")","v":""},null,null,"y",{"$f":"IF(Q13<>0,Q13,\"\")","v":""},null,{"$f":"IFERROR(IF(Q15<>\"\",VLOOKUP(Q15,_pers2,2,FALSE),\"\"),\"NO LLIC\")","v":""},null,null,null,null,null,null,null,{"$f":"IFERROR(IF(CF23=1,\"\",IF(A9=\"FALSOFALSO\",\"\",IF(I9=\"E\",\"\",IF(Q15<>\"\",VLOOKUP(Q15,_pers2,6,0),\"\")))),\"\")","v":""},null,null,null,null,null,null,null,null,null,null,null,null,"","",{"$f":"IF(BI15+BJ15<>0,AP14+BI15,\"\")","v":""},{"$f":"IF(BI15+BJ15<>0,AQ14+BJ15,\"\")","v":""},null,null,null,null,0,0,0,0,0,0,0,0,0,0,0,0,null,0,0,null,null,null,null,null,null,null,null,null,null,null,null,null,null,null,null,null,null,null,null,null,null,null,null,null,null,null,null,null,null,null,""]
[null,"B",{"$f":"IF(C13<>0,C13,\"\")","v":""},null,{"$f":"IFERROR(IF(C16<>\"\",VLOOKUP(C16,_pers2,2,0),\"\"),\"NO LLIC\")","v":""},null,null,null,null,null,null,null,{"$f":"IFERROR(IF(CF24=1,\"\",IF(A10=\"FALSOFALSO\",\"\",IF(I10=\"E\",\"\",IF(C16<>\"\",VLOOKUP(C16,_pers2,6,0),\"\")))),\"\")","v":""},null,null,"X",{"$f":"IF(Q12<>0,Q12,\"\")","v":""},null,{"$f":"IFERROR(IF(Q16<>\"\",VLOOKUP(Q16,_pers2,2,FALSE),\"\"),\"NO LLIC\")","v":""},null,null,null,null,null,null,null,{"$f":"IFERROR(IF(CF24=1,\"\",IF(A9=\"FALSOFALSO\",\"\",IF(6=\"E\",\"\",IF(Q16<>\"\",VLOOKUP(Q16,_pers2,6,0),\"\")))),\"\")","v":""},null,null,null,null,null,null,null,null,null,null,null,null,"","",{"$f":"IF(BI16+BJ16<>0,AP15+BI16,\"\")","v":""},{"$f":"IF(BI16+BJ16<>0,AQ15+BJ16,\"\")","v":""},null,null,null,null,0,0,0,0,0,0,0,0,0,0,0,0,null,0,0,null,null,null,null,null,null,null,null,null,null,null,null,null,null,null,null,null,null,null,null,null,null,null,null,null,null,null,null,null,null,null,""]
[null,"B",null,null,"El doble es juga al mig",null,null,null,null,null,null,null,null,null,null,null,null,null,null,null,null,null,null,null,null,null,null,null,null,null,null,null,null,null,null,null,null,null,null,"","",{"$f":"IF(BI17+BJ17<>0,AP16+BI17,\"\")","v":""},{"$f":"IF(BI17+BJ17<>0,AQ16+BJ17,\"\")","v":""},null,null,null,null,0,0,0,0,0,0,0,0,0,0,0,0,null,0,0,null,null,null,null,null,null,null,null,null,null,null,null,null,null,null,null,null,null,null,null,null,null,null,null,null,null,null,null,null,null,null,""]
[null,"db",null,null,{"$f":"IF(C18<>\"\",VLOOKUP(C18,_pers2,2,0),\"\")","v":""},null,null,null,null,null,null,null,{"$f":"IF(CF26=1,\"\",IF(H12=\"FALSOFALSO\",\"\",IF(I12=\"E\",\"\",IF(C18<>\"\",VLOOKUP(C18,_pers2,6,0),\"\"))))","v":""},null,null,"db",null,null,{"$f":"IF(Q18<>\"\",VLOOKUP(Q18,_pers2,2,0),\"\")","v":""},null,null,null,null,null,null,null,{"$f":"IF(CF26=1,\"\",IF(V12=\"FALSOFALSO\",\"\",IF(W12=\"E\",\"\",IF(Q18<>\"\",VLOOKUP(Q18,_pers2,6,0),\"\"))))","v":""},null,null,null,null,null,null,null,null,null,null,null,null,"","",{"$f":"IF(BI18+BJ18<>0,AP17+BI18,\"\")","v":""},{"$f":"IF(BI18+BJ18<>0,AQ17+BJ18,\"\")","v":""},null,null,null,null,0,0,0,0,0,0,0,0,0,0,0,0,null,0,0,null,null,null,null,null,null,null,null,null,null,null,null,null,null,null,null,null,null,null,null,null,null,null,null,null,null,null,null,null,null,null,""]
[null,null,null,null,{"$f":"IF(C19<>\"\",VLOOKUP(C19,_pers2,2,0),\"\")","v":""},null,null,null,null,null,null,null,{"$f":"IF(CF27=1,\"\",IF(H13=\"FALSOFALSO\",\"\",IF(I13=\"E\",\"\",IF(C19<>\"\",VLOOKUP(C19,_pers2,6,0),\"\"))))","v":""},null,null,null,null,null,{"$f":"IF(Q19<>\"\",VLOOKUP(Q19,_pers2,2,0),\"\")","v":""},null,null,null,null,null,null,null,{"$f":"IF(CF27=1,\"\",IF(V13=\"FALSOFALSO\",\"\",IF(W13=\"E\",\"\",IF(Q19<>\"\",VLOOKUP(Q19,_pers2,6,0),\"\"))))","v":""},null,null,null,null,null,null,null,null,null,null,null,null,null,null,null,null,null,null,null,null,{"$f":"SUM(AD12:AD19)","v":0},{"$f":"SUM(AF12:AF19)","v":0},{"$f":"SUM(AH12:AH19)","v":0},{"$f":"SUM(AJ12:AJ19)","v":0},{"$f":"SUM(AL12:AL19)","v":0},0,{"$f":"SUM(AE12:AE19)","v":0},{"$f":"SUM(AG12:AG19)","v":0},{"$f":"SUM(AI12:AI19)","v":0},{"$f":"SUM(AK12:AK19)","v":0},{"$f":"SUM(AM12:AM19)","v":0},0,null,null,{"$f":"SUM(AV18:BG18)","v":0},null,null,null,null,null,null,null,null,null,null,null,null,null,null,null,null,null,null,null,null,null,null,null,null,null,null,null,null,null,null,null,""]
[null,null,null,null,null,null,null,null,null,null,null,null,null,null,null,null,null,null,null,null,null,null,null,null,null,null,null,null,null,{"$f":"IF(AP21=3,IF(+AQ21=3,\"Empatats\",\"Guanyador:\"),\"Guanyador:\")","v":"Guanyador:"},null,null,null,{"$f":"IF(AN21+AO21=0,\"\",IF(AP21>2,E9,IF(AQ21>2,S9,IF(AP21+AQ21=6,\"--- E M P A T ---\",\"\"))))","v":""},null,null,null,null,null,null,null,null,null,null,null,null,null,null,null,null,null,null,null,null,null,null,null,null,null,null,null,null,null,null,null,null,null,null,null,null,null,null,null,null,null,null,null,null,null,null,null,null,null,null,{"$f":"AH4&\"  -  \"&AH5","v":"  -  "},{"$f":"D4","v":0},{"$f":"Y4","v":""},{"$f":"Y5","v":""},{"$f":"AF4","v":""},{"$f":"AH4","v":""},{"$f":"S9","v":""},{"$f":"AH5","v":""},null,""]
[null,null,null,null,null,null,null,null,null,null,null,null,null,null,null,null,null,null,null,null,null,null,null,null,null,null,null,null,null,{"$f":"IF(AP21=3,E10,IF(AQ21=3,S10,\"\"))","v":""},null,null,null,null,null,null,null,null,null,{"$f":"IF(SUM(AN12:AO19)>0,SUM(AN12:AN19),0)","v":0},{"$f":"IF(SUM(AN12:AO19)>0,SUM(AO12:AO19),0)","v":0},{"$f":"IF(SUM(AP12:AQ19)>0,MAX(AP12:AP19),0)","v":0},{"$f":"IF(SUM(AP12:AQ19)>0,MAX(AQ12:AQ19),0)","v":0},null,null,null,null,null,null,null,null,null,null,null,null,null,null,null,null,null,null,null,null,null,null,null,null,null,null,null,null,null,null,null,null,null,null,null,null,null,null,null,null,null,null,null,null,null,null,null,null,null,null,""]
[null,null,null,null,null,null,null,null,null,null,null,null,null,null,null,null,null,null,null,null,null,null,null,null,null,null,null,null,null,null,null,null,null,null,null,null,null,null,"punts",{"$f":"BA19&\" / \"&BG19","v":"0 / 0"},null,null,null,null,null,null,null,null,null,null,null,null,null,null,null,null,null,null,null,null,null,null,null,null,null,null,null,null,null,null,null,null,null,null,null,null,null,null,null,null,null,null,null,null,null,null,null,null,null,null,null,null,null,""]
[null,"Observacions",null,null,null,null,null,null,null,null,null,null,null,null,null,null,null,null,null,null,null,null,null,null,null,null,null,null,null,null,"Àrbitre",null,null,null,null,null,null,null,null,null,null,null,null,null,null,null,null,null,null,null,null,null,null,null,null,null,null,null,null,null,null,null,null,null,null,null,null,null,null,null,null,null,null,null,null,null,null,null,null,null,null,null,null,null,null,null,null,null,null,null,null,null,null,""]
[null,null,null,null,null,null,null,null,null,null,null,null,null,null,null,null,null,null,null,null,null,null,null,null,null,null,null,null,null,null,{"$f":"IFERROR(VLOOKUP(AJ26,ARB,2,0),\"\")","v":""},null,null,null,null,null,null,null,null,null,null,null,null,null,null,null,null,null,null,null,null,null,null,null,null,null,null,null,null,null,null,null,null,null,null,null,null,null,null,null,null,null,null,null,null,null,null,null,null,null,null,null,null,null,null,null,null,null,null,null,null,null,null,""]
[null,null,null,null,null,null,null,null,null,null,null,null,null,null,null,null,null,null,null,null,null,null,null,null,null,null,null,null,null,null,null,null,null,null,null,null,null,null,null,null,null,null,null,null,null,null,null,null,null,null,null,null,null,null,null,null,null,null,null,null,null,null,null,null,null,null,null,null,null,null,null,null,null,null,null,null,null,null,null,null,null,null,null,null,null,null,null,null,null,null,null,null,null,""]
[null,null,null,null,null,null,null,null,null,null,null,null,null,null,null,null,null,null,null,null,null,null,null,null,null,null,null,null,null,null,"Llicència núm.:",null,null,null,null,null,null,null,null,null,null,null,null,null,null,null,null,null,null,null,null,null,null,null,null,null,null,null,null,null,null,null,null,null,null,null,null,null,null,null,null,null,null,null,null,null,null,null,null,null,null,null,null,null,null,null,null,null,null,null,null,null,null,""]
[null,"Instruccions:",null,null,null,null,null,null,null,null,null,null,null,null,null,null,null,null,null,null,null,null,null,null,null,null,null,null,null,null,null,null,null,null,null,null,null,null,null,null,null,null,null,null,null,null,null,null,null,null,null,null,null,null,null,null,null,null,null,null,null,null,null,null,null,null,null,null,null,null,null,null,null,null,null,null,null,null,null,null,null,null,null,null,null,null,null,null,null,null,null,null,null,""]
[null,"- Introduïu Núm d'ACTA (consultar calendari). Després assigneu lletres",null,null,null,null,null,null,null,null,null,null,null,null,null,null,null,null,null,null,null,null,null,null,null,null,null,null,null,null,null,null,null,null,null,null,null,null,null,null,null,null,null,null,null,null,null,null,null,null,null,null,null,null,null,null,null,null,null,null,null,null,null,null,null,null,null,null,null,null,null,null,null,null,null,null,null,null,null,null,null,null,null,null,null,null,null,null,null,null,null,null,null,""]
[null,"- Si teniu problemes amb algun número personal, podeu utilitzar els np \"A\", \"B\", \"E\", \"F\", \"X\", \"Y\", \"V\" O \"W\". Poseu el nom i DNI a observacions.",null,null,null,null,null,null,null,null,null,null,null,null,null,null,null,null,null,null,null,null,null,null,null,null,null,null,null,null,null,null,null,null,null,null,null,null,null,null,null,null,null,null,null,null,null,null,null,null,null,null,null,null,null,null,null,null,null,null,null,null,null,null,null,null,null,null,null,null,null,null,null,null,null,null,null,null,null,null,null,null,null,null,null,null,null,null,null,null,null,null,null,""]
[null,"- En cas de \"No presentat\", poseu els jugadors de l'equip presentat, no poseu cap resultat i poseu  a observacions els motius o les circumstàncies.",null,null,null,null,null,null,null,null,null,null,null,null,null,null,null,null,null,null,null,null,null,null,null,null,null,null,null,null,null,null,null,null,null,null,null,null,null,null,null,null,null,null,null,null,null,null,null,null,null,null,null,null,null,null,null,null,null,null,null,null,null,null,null,null,null,null,null,null,null,null,null,null,null,null,null,null,null,null,null,null,null,null,null,null,null,null,null,null,null,null,null,""]
[null,"- Només podeu introduir dades a les caselles ombrejades en color verd i al requadre d'observacions",null,null,null,null,null,null,null,null,null,null,null,null,null,null,null,null,null,null,null,null,null,null,null,null,null,null,null,null,null,null,null,null,null,null,null,null,null,null,null,null,null,null,null,null,null,null,null,null,null,null,null,null,null,null,null,null,null,null,null,null,null,null,null,null,null,null,null,null,null,null,null,null,null,null,null,null,null,null,null,null,null,null,null,null,null,null,null,null,null,null,null,""]
[null,null,null,null,null,null,null,null,null,null,null,null,null,null,null,null,null,null,null,null,null,null,null,null,null,null,null,null,null,null,null,null,null,null,null,null,null,null,null,null,null,null,null,null,null,null,null,null,null,null,null,null,null,null,null,null,null,null,null,null,null,null,null,null,null,null,null,null,null,null,null,null,null,null,null,null,null,null,null,null,null,null,null,null,null,null,null,null,null,null,null,null,null,""]
[null,null,null,null,null,null,null,null,null,null,null,null,null,null,null,null,null,null,null,null,null,null,null,null,null,null,null,null,null,null,null,null,null,null,null,null,null,null,null,null,null,null,null,null,null,null,null,null,null,null,null,null,null,null,null,null,null,null,null,null,null,null,null,null,null,null,null,null,null,null,null,null,null,null,null,null,null,null,null,null,null,null,null,null,null,null,null,null,null,null,null,null,null,""]
[null,null,null,null,null,null,null,null,null,null,null,null,null,null,null,null,null,null,null,null,null,null,null,null,null,null,null,null,null,null,null,null,null,null,null,null,null,null,null,null,null,null,null,null,null,null,null,null,null,null,null,null,null,null,null,null,null,null,null,null,null,null,null,null,null,null,null,null,null,null,null,null,null,null,null,null,null,null,null,null,null,null,null,null,null,null,null,null,null,null,null,null,null,""]
[null,null,null,null,null,null,null,null,null,null,null,null,null,null,null,null,null,null,null,null,null,null,null,null,null,null,null,null,null,null,null,null,null,null,null,null,null,null,null,null,null,null,null,null,null,null,null,null,null,null,null,null,null,null,null,null,null,null,null,null,null,null,null,null,null,null,null,null,null,null,null,null,null,null,null,null,null,null,null,null,null,null,null,null,null,null,null,null,null,null,null,null,null,""]
[null,null,null,null,null,null,null,null,null,null,null,null,null,null,null,null,null,null,null,null,null,null,null,null,null,null,null,null,null,null,null,null,null,null,null,null,null,null,null,null,null,null,null,null,null,null,null,null,null,null,null,null,null,null,null,null,null,null,null,null,null,null,null,null,null,null,null,null,null,null,null,null,null,null,null,null,null,null,null,null,null,null,null,null,null,null,null,null,null,null,null,null,null,""]
[null,null,null,null,null,null,null,null,null,null,null,null,null,null,null,null,null,null,null,null,null,null,null,null,null,null,null,null,null,null,null,null,null,null,null,null,null,null,null,null,null,null,null,null,null,null,null,null,null,null,null,null,null,null,null,null,null,null,null,null,null,null,null,null,null,null,null,null,null,null,null,null,null,null,null,null,null,null,null,null,null,null,null,null,null,null,null,null,null,null,null,null,null,""]
[null,null,null,null,null,null,null,null,null,null,null,null,null,null,null,null,null,null,null,null,null,null,null,null,null,null,null,null,null,null,null,null,null,null,null,null,null,null,null,null,null,null,null,null,null,null,null,null,null,null,null,null,null,null,null,null,null,null,null,null,null,null,null,null,null,null,null,null,null,null,null,null,null,null,null,null,null,null,null,null,null,null,null,null,null,null,null,null,null,null,null,null,null,""]
[null,null,null,null,null,null,null,null,null,null,null,null,null,null,null,null,null,null,null,null,null,null,null,null,null,null,null,null,null,null,null,null,null,null,null,null,null,null,null,null,null,null,null,null,null,null,null,null,null,null,null,null,null,null,null,null,null,null,null,null,null,null,null,null,null,null,null,null,null,null,null,null,null,null,null,null,null,null,null,null,null,null,null,null,null,null,null,null,null,null,null,null,null,""]
[null,null,null,null,null,null,null,null,null,null,null,null,null,null,null,null,null,null,null,null,null,null,null,null,null,null,null,null,null,null,null,null,null,null,null,null,null,null,null,null,null,null,null,null,null,null,null,null,null,null,null,null,null,null,null,null,null,null,null,null,null,null,null,null,null,null,null,null,null,null,null,null,null,null,null,null,null,null,null,null,null,null,null,null,null,null,null,null,null,null,null,null,null,""]
[null,null,null,null,null,null,null,null,null,null,null,null,null,null,null,null,null,null,null,null,null,null,null,null,null,null,null,null,null,null,null,null,null,null,null,null,null,null,null,null,null,null,null,null,null,null,null,null,null,null,null,null,null,null,null,null,null,null,null,null,null,null,null,null,null,null,null,null,null,null,null,null,null,null,null,null,null,null,null,null,null,null,null,null,null,null,null,null,null,null,null,null,null,""]
[null,null,null,null,null,null,null,null,null,null,null,null,null,null,null,null,null,null,null,null,null,null,null,null,null,null,null,null,null,null,null,null,null,null,null,null,null,null,null,null,null,null,null,null,null,null,null,null,null,null,null,null,null,null,null,null,null,null,null,null,null,null,null,null,null,null,null,null,null,null,null,null,null,null,null,null,null,null,null,null,null,null,null,null,null,null,null,null,null,null,null,null,null,""]
[null,null,null,null,null,null,null,null,null,null,null,null,null,null,null,null,null,null,null,null,null,null,null,null,null,null,null,null,null,null,null,null,null,null,null,null,null,null,null,null,null,null,null,null,null,null,null,null,null,null,null,null,null,null,null,null,null,null,null,null,null,null,null,null,null,null,null,null,null,null,null,null,null,null,null,null,null,null,null,null,null,null,null,null,null,null,null,null,null,null,null,null,null,""]
[null,null,null,null,null,null,null,null,null,null,null,null,null,null,null,null,null,null,null,null,null,null,null,null,null,null,null,null,null,null,null,null,null,null,null,null,null,null,null,null,null,null,null,null,null,null,null,null,null,null,null,null,null,null,null,null,null,null,null,null,null,null,null,null,null,null,null,null,null,null,null,null,null,null,null,null,null,null,null,null,null,null,null,null,null,null,null,null,null,null,null,null,null,""]
[null,null,null,null,null,null,null,null,null,null,null,null,null,null,null,null,null,null,null,null,null,null,null,null,null,null,null,null,null,null,null,null,null,null,null,null,null,null,null,null,null,null,null,null,null,null,null,null,null,null,null,null,null,null,null,null,null,null,null,null,null,null,null,null,null,null,null,null,null,null,null,null,null,null,null,null,null,null,null,null,null,null,null,null,null,null,null,null,null,null,null,null,null,""]
[null,null,null,null,null,null,null,null,null,null,null,null,null,null,null,null,null,null,null,null,null,null,null,null,null,null,null,null,null,null,null,null,null,null,null,null,null,null,null,null,null,null,null,null,null,null,null,null,null,null,null,null,null,null,null,null,null,null,null,null,null,null,null,null,null,null,null,null,null,null,null,null,null,null,null,null,null,null,null,null,null,null,null,null,null,null,null,null,null,null,null,null,null,""]
[null,null,null,null,null,null,null,null,null,null,null,null,null,null,null,null,null,null,null,null,null,null,null,null,null,null,null,null,null,null,null,null,null,null,null,null,null,null,null,null,null,null,null,null,null,null,null,null,null,null,null,null,null,null,null,null,null,null,null,null,null,null,null,null,null,null,null,null,null,null,null,null,null,null,null,null,null,null,null,null,null,null,null,null,null,null,null,null,null,null,null,null,null,""]
[null,null,null,null,null,null,null,null,null,null,null,null,null,null,null,null,null,null,null,null,null,null,null,null,null,null,null,null,null,null,null,null,null,null,null,null,null,null,null,null,null,null,null,null,null,null,null,null,null,null,null,null,null,null,null,null,null,null,null,null,null,null,null,null,null,null,null,null,null,null,null,null,null,null,null,null,null,null,null,null,null,null,null,null,null,null,null,null,null,null,null,null,null,""]
[null,null,null,null,null,null,null,null,null,null,null,null,null,null,null,null,null,null,null,null,null,null,null,null,null,null,null,null,null,null,null,null,null,null,null,null,null,null,null,null,null,null,null,null,null,null,null,null,null,null,null,null,null,null,null,null,null,null,null,null,null,null,null,null,null,null,null,null,null,null,null,null,null,null,null,null,null,null,null,null,null,null,null,null,null,null,null,null,null,null,null,null,null,""]
[null,null,null,null,null,null,null,null,null,null,null,null,null,null,null,null,null,null,null,null,null,null,null,null,null,null,null,null,null,null,null,null,null,null,null,null,null,null,null,null,null,null,null,null,null,null,null,null,null,null,null,null,null,null,null,null,null,null,null,null,null,null,null,null,null,null,null,null,null,null,null,null,null,null,null,null,null,null,null,null,null,null,null,null,null,null,null,null,null,null,null,null,null,""]
[null,null,null,null,null,null,null,null,null,null,null,null,null,null,null,null,null,null,null,null,null,null,null,null,null,null,null,null,null,null,null,null,null,null,null,null,null,null,null,null,null,null,null,null,null,null,null,null,null,null,null,null,null,null,null,null,null,null,null,null,null,null,null,null,null,null,null,null,null,null,null,null,null,null,null,null,null,null,null,null,null,null,null,null,null,null,null,null,null,null,null,null,null,"",null,null,null,null,null,null,null,null,null,null,null,null,null,{"$f":"CH20","v":0},{"$f":"CI20","v":""},{"$f":"CJ20","v":""},{"$f":"AF4","v":""},{"$f":"AF5","v":""},{"$f":"E9","v":""},{"$f":"S9","v":""},{"$f":"C12","v":0},{"$f":"Q12","v":0},{"$f":"AD12","v":0},0,0,0,0,0,0,0,0,0,"",""]
[null,null,null,null,null,null,null,null,null,null,null,null,null,null,null,null,null,null,null,null,null,null,null,null,null,null,null,null,null,null,null,null,null,null,null,null,null,null,null,null,null,null,null,null,null,null,null,null,null,null,null,null,null,null,null,null,null,null,null,null,null,null,null,null,null,null,null,null,null,null,null,null,null,null,null,null,null,null,null,null,null,null,null,null,null,null,null,null,null,null,null,null,null,"",null,null,null,null,null,null,null,null,null,null,null,null,null,null,null,null,{"$f":"AS4","v":0},{"$f":"AS5","v":0},{"$f":"AH20","v":""},{"$f":"AA9","v":0},{"$f":"C13","v":0},{"$f":"Q13","v":0},0,0,0,0,0,0,0,0,0,0,"",""]
[null,null,null,null,null,null,null,null,null,null,null,null,null,null,null,null,null,null,null,null,null,null,null,null,null,null,null,null,null,null,null,null,null,null,null,null,null,null,null,null,null,null,null,null,null,null,null,null,null,null,null,null,null,null,null,null,null,null,null,null,null,null,null,null,null,null,null,null,null,null,null,null,null,null,null,null,null,null,null,null,null,null,null,null,null,null,null,null,null,null,null,null,null,"",null,null,null,null,null,null,null,null,null,null,null,null,null,{"$f":"C21","v":0},{"$f":"Q21","v":0},null,null,null,null,null,{"$f":"C14","v":"  "},{"$f":"Q14","v":"  "},0,0,0,0,0,0,0,0,0,0,"",""]
[null,null,null,null,null,null,null,null,null,null,null,null,null,null,null,null,null,null,null,null,null,null,null,null,null,null,null,null,null,null,null,null,null,null,null,null,null,null,null,null,null,null,null,null,null,null,null,null,null,null,null,null,null,null,null,null,null,null,null,null,null,null,null,null,null,null,null,null,null,null,null,null,null,null,null,null,null,null,null,null,null,null,null,null,null,null,null,null,null,null,null,null,null,"",null,null,null,null,null,null,null,null,null,null,null,null,null,{"$f":"C22","v":0},{"$f":"Q22","v":0},null,null,null,null,null,{"$f":"C15","v":""},{"$f":"Q15","v":""},0,0,0,0,0,0,0,0,0,0,"",""]
[null,null,null,null,null,null,null,null,null,null,null,null,null,null,null,null,null,null,null,null,null,null,null,null,null,null,null,null,null,null,null,null,null,null,null,null,null,null,null,null,null,null,null,null,null,null,null,null,null,null,null,null,null,null,null,null,null,null,null,null,null,null,null,null,null,null,null,null,null,null,null,null,null,null,null,null,null,null,null,null,null,null,null,null,null,null,null,null,null,null,null,null,null,"",null,null,null,null,null,null,null,null,null,null,null,null,null,null,null,null,null,null,null,null,{"$f":"IF(C16=\"\",C14,C16)","v":"  "},{"$f":"IF(Q16=\"\",Q12,Q16)","v":0},0,0,0,0,0,0,0,0,0,0,"",""]
[null,null,null,null,null,null,null,null,null,null,null,null,null,null,null,null,null,null,null,null,null,null,null,null,null,null,null,null,null,null,null,null,null,null,null,null,null,null,null,null,null,null,null,null,null,null,null,null,null,null,null,null,null,null,null,null,null,null,null,null,null,null,null,null,null,null,null,null,null,null,null,null,null,null,null,null,null,null,null,null,null,null,null,null,null,null,null,null,null,null,null,null,null,"",null,null,null,null,null,null,null,null,null,null,null,null,null,null,null,null,null,null,null,null,{"$f":"IF(C17=\"\",C13,C17)","v":0},{"$f":"IF(Q17=\"\",Q14,Q17)","v":"  "},0,0,0,0,0,0,0,0,0,0,"",""]
[null,null,null,null,null,null,null,null,null,null,null,null,null,null,null,null,null,null,null,null,null,null,null,null,null,null,null,null,null,null,null,null,null,null,null,null,null,null,null,null,null,null,null,null,null,null,null,null,null,null,null,null,null,null,null,null,null,null,null,null,null,null,null,null,null,null,null,null,null,null,null,null,null,null,null,null,null,null,null,null,null,null,null,null,null,null,null,null,null,null,null,null,null,"",null,null,null,null,null,null,null,null,null,null,null,null,null,"arbitre:",null,null,null,null,null,null,{"$f":"C18","v":0},{"$f":"Q18","v":0},{"$f":"AD18","v":0},0,0,0,0,0,0,0,0,0,{"$f":"IF(BJ19>0,AN18,\"\")","v":""},{"$f":"IF(BJ19>0,AO18,\"\")","v":""}]
[null,null,null,null,null,null,null,null,null,null,null,null,null,null,null,null,null,null,null,null,null,null,null,null,null,null,null,null,null,null,null,null,null,null,null,null,null,null,null,null,null,null,null,null,null,null,null,null,null,null,null,null,null,null,null,null,null,null,null,null,null,null,null,null,null,null,null,null,null,null,null,null,null,null,null,null,null,null,null,null,null,null,null,null,null,null,null,null,null,null,null,null,null,"",null,null,null,null,null,null,null,null,null,null,null,null,null,{"$f":"IF(AJ26<>\"\",AJ26,\"\")","v":""},null,null,null,null,null,null,{"$f":"C19","v":0},{"$f":"Q19","v":0},{"$f":"IF(AN21+AO21=0,\"\",IF(AP21>3,E9,IF(AQ21>3,S9,\"\")))","v":""},null,null,null,null,null,null,null,null,null,{"$f":"AP21","v":0},{"$f":"AQ21","v":0}]
[null,null,null,null,null,null,null,null,null,null,null,null,null,null,null,null,null,null,null,null,null,null,null,null,null,null,null,null,null,null,null,null,null,null,null,null,null,null,null,null,null,null,null,null,null,null,null,null,null,null,null,null,null,null,null,null,null,null,null,null,null,null,null,null,null,null,null,null,null,null,null,null,null,null,null,null,null,null,null,null,null,null,null,null,null,null,null,null,null,null,null,null,null,""]
[null,null,null,null,null,null,null,null,null,null,null,null,null,null,null,null,null,null,null,null,null,null,null,null,null,null,null,null,null,null,null,null,null,null,null,null,null,null,null,null,null,null,null,null,null,null,null,null,null,null,null,null,null,null,null,null,null,null,null,null,null,null,null,null,null,null,null,null,null,null,null,null,null,null,null,null,null,null,null,null,null,null,null,null,null,null,null,null,null,null,null,null,null,""]
[null,null,null,null,null,null,null,null,null,null,null,null,null,null,null,null,null,null,null,null,null,null,null,null,null,null,null,null,null,null,null,null,null,null,null,null,null,null,null,null,null,null,null,null,null,null,null,null,null,null,null,null,null,null,null,null,null,null,null,null,null,null,null,null,null,null,null,null,null,null,null,null,null,null,null,null,null,null,null,null,null,null,null,null,null,null,null,null,null,null,null,null,null,""]
[null,null,null,null,null,null,null,null,null,null,null,null,null,null,null,null,null,null,null,null,null,null,null,null,null,null,null,null,null,null,null,null,null,null,null,null,null,null,null,null,null,null,null,null,null,null,null,null,null,null,null,null,null,null,null,null,null,null,null,null,null,null,null,null,null,null,null,null,null,null,null,null,null,null,null,null,null,null,null,null,null,null,null,null,null,null,null,null,null,null,null,null,null,""]
[null,null,null,null,null,null,null,null,null,null,null,null,null,null,null,null,null,null,null,null,null,null,null,null,null,null,null,null,null,null,null,null,null,null,null,null,null,null,null,null,null,null,null,null,null,null,null,null,null,null,null,null,null,null,null,null,null,null,null,null,null,null,null,null,null,null,null,null,null,null,null,null,null,null,null,null,null,null,null,null,null,null,null,null,null,null,null,null,null,null,null,null,null,""]

{"sheet":"ARBITRES","index":1,"n_rows":41,"n_cols":3,"rows_kept":41,"cut":false,"hidden":true,"merged":[]}
[null,"ARBITRES"]
[]
[null,381,"ALTARRIBA CUNILL, RAMON"]
[null,5613,"ARAGALL CHECA, NIL"]
[null,11563,"ARAGALL MUSACH, JORDI"]
[null,6545,"BARCELÓ MAS, PAU"]
[null,931,"BOSCH PASTOR, ENRIC"]
[null,7726,"CAIRÓ PONT, GUILLEM"]
[null,286,"CARMONA RODRIGUEZ, MANUEL"]
[null,3375,"CASADO PAGES, ENRIC"]
[null,987,"CASADÓ PAGÉS, XAVIER"]
[null,666,"CASAS CASAS, JORDI"]
[null,292,"CHACON SIMEON, ALEJANDRO"]
[null,1333,"COLINAS CASTELLÀ, DAVID"]
[null,850,"DURAN SALGUEIRO, ROBERTO CARLOS"]
[null,706,"FAIG VILA, GLÒRIA"]
[null,714,"FERREIRO LOPEZ, ELOY JOSE"]
[null,219,"FIGUERAS TRICAS, ANTONI"]
[null,7613,"FLORES MARTINEZ, JUAN ANTONIO"]
[null,150,"FONT EXPOSITO, JORDI"]
[null,1152,"GARCIA MOMBLONA, CARLOS"]
[null,884,"GARCIA MOMBLONA, RICHARD"]
[null,1855,"GEBELLI BORRAS, JORDI"]
[null,4733,"GUAL REDONDO, ENRIC"]
[null,5607,"GUAL ROVIRA, CARLES"]
[null,131,"ILLA MINISTRAL, PERE"]
[null,802,"JAREÑO SANCHEZ, JAVIER"]
[null,1663,"JOFRE BOTEY, JAUME"]
[null,8835,"MARTINEZ GOMEZ, ANTONIO"]
[null,3329,"MASIP ESTRUCH, AGUSTI"]
[null,786,"PUIG POZUELO, TANIA"]
[null,166,"SAIZ CUEVAS, LUÍS"]
[null,15856,"SANCHEZ PEREGRINA, SONIA"]
[null,523,"SANTIAGO FERNANDEZ, GUILLEM"]
[null,4026,"SANTOS CUENCA, DAVID"]
[null,95,"SIMON COLL, SALVADOR"]
[null,7750,"TAKENOUCHI, SABRINA"]
[null,7090,"TERUEL ARBUES, ALEJANDRO"]
[null,422,"VILLAHOZ GARCÍA, FERNANDO"]
[null,13112,"VILLAR SILVESTRE, EDUARDO"]
[null,723,"ZAPATA PAEZ, CARLOS"]

{"sheet":"ALINEABLES","index":2,"n_rows":68,"n_cols":16,"rows_kept":68,"cut":false,"hidden":false,"merged":[]}
[null,"LLICÈNCIES ALINEABLES (Excepte canvis d'\"STATUS\")",null,null,null,null,null,null,null,null,null,null,null,null,null,"TDM 2022/2023"]
[null,"QUE ES MOSTRI EL NOM NO PRESUPOSA QUE SIGUI CORRECTE L'ALINEACIÓ (depèn de l'status adquirit)"]
[null,"(AB) La primera alineació a l'equip \"A\" o \"B\" determinarà el seu enquadrament"]
[]
[null,{"$f":"ACTA!AF4*1","v":{"$error":"#VALUE!"}},{"$f":"ACTA!AH4","v":""},{"$f":"VLOOKUP(C5,CLUBS,2,0)","v":{"$error":"#N/A"}},"NAC","EDA","LLIC","A/B",null,{"$f":"ACTA!AF5*1","v":{"$error":"#VALUE!"}},{"$f":"ACTA!AH5","v":""},{"$f":"VLOOKUP(K5,CLUBS,2,0)","v":{"$error":"#N/A"}},"NAC","EDA","LLIC","A/B"]
[{"$f":"IFERROR(MATCH(B5*1,jugcopafem!L3:L138,0),\"\")","v":""},{"$f":"IF(D6<>$D$5,\"\",INDEX(jugcopafem!$A$3:$O$230,A6,3))","v":{"$error":"#VALUE!"}},{"$f":"IF(D6<>$D$5,\"\",INDEX(INDEX,A6,4))","v":{"$error":"#VALUE!"}},{"$f":"IF(INDEX(INDEX,A6,12)<>$B$5,\"\",INDEX(INDEX,A6,8))","v":{"$error":"#VALUE!"}},{"$f":"IF(D6<>$D$5,\"\",INDEX(INDEX,A6,6))","v":{"$error":"#VALUE!"}},{"$f":"IF(D6<>$D$5,\"\",INDEX(INDEX,A6,7))","v":{"$error":"#VALUE!"}},{"$f":"IF(D6<>$D$5,\"\",INDEX(INDEX,A6,9))","v":{"$error":"#VALUE!"}},{"$f":"IF(D6<>$D$5,\"\",INDEX(INDEX,A6,2))","v":{"$error":"#VALUE!"}},{"$f":"IFERROR(MATCH(J5*1,jugcopafem!L3:L138,0),\"\")","v":""},{"$f":"IFERROR(IF(L6<>$L$5,\"\",INDEX(jugcopafem!$A$3:$O$230,I6,3)),\"\")","v":""},{"$f":"IFERROR(IF(L6<>$L$5,\"\",INDEX(INDEX,I6,4)),\"\")","v":""},{"$f":"IFERROR(IF(INDEX(INDEX,I6,12)<>$J$5,\"\",INDEX(INDEX,I6,8)),\"\")","v":""},{"$f":"IF(L6<>$L$5,\"\",INDEX(INDEX,I6,6))","v":{"$error":"#N/A"}},{"$f":"IF(L6<>$L$5,\"\",INDEX(INDEX,I6,7))","v":{"$error":"#N/A"}},{"$f":"IF(L6<>$L$5,\"\",INDEX(INDEX,I6,9))","v":{"$error":"#N/A"}},{"$f":"IF(L6<>$L$5,\"\",INDEX(INDEX,I6,2))","v":{"$error":"#N/A"}}]
[{"$f":"IFERROR(A6+1,\"\")","v":""},{"$f":"IF(D7<>$D$5,\"\",INDEX(jugcopafem!$A$3:$O$230,A7,3))","v":{"$error":"#VALUE!"}},{"$f":"IF(D7<>$D$5,\"\",INDEX(INDEX,A7,4))","v":{"$error":"#VALUE!"}},{"$error":"#VALUE!"},{"$error":"#VALUE!"},{"$error":"#VALUE!"},{"$error":"#VALUE!"},{"$error":"#VALUE!"},{"$f":"IFERROR(I6+1,\"\")","v":""},{"$f":"IFERROR(IF(L7<>$L$5,\"\",INDEX(jugcopafem!$A$3:$O$230,I7,3)),\"\")","v":""},"","",{"$error":"#N/A"},{"$error":"#N/A"},{"$error":"#N/A"},{"$error":"#N/A"}]
["",{"$f":"IF(D8<>$D$5,\"\",INDEX(jugcopafem!$A$3:$O$230,A8,3))","v":{"$error":"#VALUE!"}},{"$error":"#VALUE!"},{"$error":"#VALUE!"},{"$error":"#VALUE!"},{"$error":"#VALUE!"},{"$error":"#VALUE!"},{"$error":"#VALUE!"},{"$f":"IFERROR(I7+1,\"\")","v":""},{"$f":"IFERROR(IF(L8<>$L$5,\"\",INDEX(jugcopafem!$A$3:$O$230,I8,3)),\"\")","v":""},"","",{"$error":"#N/A"},{"$error":"#N/A"},{"$error":"#N/A"},{"$error":"#N/A"}]
["",{"$f":"IF(D9<>$D$5,\"\",INDEX(jugcopafem!$A$3:$O$230,A9,3))","v":{"$error":"#VALUE!"}},{"$error":"#VALUE!"},{"$error":"#VALUE!"},{"$error":"#VALUE!"},{"$error":"#VALUE!"},{"$error":"#VALUE!"},{"$error":"#VALUE!"},"",{"$f":"IFERROR(IF(L9<>$L$5,\"\",INDEX(jugcopafem!$A$3:$O$230,I9,3)),\"\")","v":""},"","",{"$error":"#N/A"},{"$error":"#N/A"},{"$error":"#N/A"},{"$error":"#N/A"}]
["",{"$f":"IF(D10<>$D$5,\"\",INDEX(jugcopafem!$A$3:$O$230,A10,3))","v":{"$error":"#VALUE!"}},{"$error":"#VALUE!"},{"$error":"#VALUE!"},{"$error":"#VALUE!"},{"$error":"#VALUE!"},{"$error":"#VALUE!"},{"$error":"#VALUE!"},"",{"$f":"IFERROR(IF(L10<>$L$5,\"\",INDEX(jugcopafem!$A$3:$O$230,I10,3)),\"\")","v":""},"","",{"$error":"#N/A"},{"$error":"#N/A"},{"$error":"#N/A"},{"$error":"#N/A"}]
["",{"$f":"IF(D11<>$D$5,\"\",INDEX(jugcopafem!$A$3:$O$230,A11,3))","v":{"$error":"#VALUE!"}},{"$error":"#VALUE!"},{"$error":"#VALUE!"},{"$error":"#VALUE!"},{"$error":"#VALUE!"},{"$error":"#VALUE!"},{"$error":"#VALUE!"},"",{"$f":"IFERROR(IF(L11<>$L$5,\"\",INDEX(jugcopafem!$A$3:$O$230,I11,3)),\"\")","v":""},"","",{"$error":"#N/A"},{"$error":"#N/A"},{"$error":"#N/A"},{"$error":"#N/A"}]
["",{"$f":"IF(D12<>$D$5,\"\",INDEX(jugcopafem!$A$3:$O$230,A12,3))","v":{"$error":"#VALUE!"}},{"$error":"#VALUE!"},{"$error":"#VALUE!"},{"$error":"#VALUE!"},{"$error":"#VALUE!"},{"$error":"#VALUE!"},{"$error":"#VALUE!"},"",{"$f":"IFERROR(IF(L12<>$L$5,\"\",INDEX(jugcopafem!$A$3:$O$230,I12,3)),\"\")","v":""},"","",{"$error":"#N/A"},{"$error":"#N/A"},{"$error":"#N/A"},{"$error":"#N/A"}]
["",{"$f":"IF(D13<>$D$5,\"\",INDEX(jugcopafem!$A$3:$O$230,A13,3))","v":{"$error":"#VALUE!"}},{"$error":"#VALUE!"},{"$error":"#VALUE!"},{"$error":"#VALUE!"},{"$error":"#VALUE!"},{"$error":"#VALUE!"},{"$error":"#VALUE!"},"",{"$f":"IFERROR(IF(L13<>$L$5,\"\",INDEX(jugcopafem!$A$3:$O$230,I13,3)),\"\")","v":""},"","",{"$error":"#N/A"},{"$error":"#N/A"},{"$error":"#N/A"},{"$error":"#N/A"}]
["",{"$f":"IFERROR(IF(D14<>$D$5,\"\",INDEX(jugcopafem!$A$3:$O$230,A14,3)),\"\")","v":""},{"$f":"IFERROR(IF(D14<>$D$5,\"\",INDEX(INDEX,A14,4)),\"\")","v":""},{"$f":"IFERROR(IF(INDEX(INDEX,A14,12)<>$B$5,\"\",INDEX(INDEX,A14,8)),\"\")","v":""},{"$error":"#N/A"},{"$error":"#N/A"},{"$error":"#N/A"},{"$error":"#N/A"},"",{"$f":"IFERROR(IF(L14<>$L$5,\"\",INDEX(jugcopafem!$A$3:$O$230,I14,3)),\"\")","v":""},"","",{"$error":"#N/A"},{"$error":"#N/A"},{"$error":"#N/A"},{"$error":"#N/A"}]
["",{"$f":"IFERROR(IF(D15<>$D$5,\"\",INDEX(jugcopafem!$A$3:$O$230,A15,3)),\"\")","v":""},"","",{"$f":"IF(D15<>$D$5,\"\",INDEX(INDEX,A15,6))","v":{"$error":"#N/A"}},{"$f":"IF(D15<>$D$5,\"\",INDEX(INDEX,A15,7))","v":{"$error":"#N/A"}},{"$f":"IF(D15<>$D$5,\"\",INDEX(INDEX,A15,9))","v":{"$error":"#N/A"}},{"$f":"IF(D15<>$D$5,\"\",INDEX(INDEX,A15,2))","v":{"$error":"#N/A"}},"",{"$f":"IFERROR(IF(L15<>$L$5,\"\",INDEX(jugcopafem!$A$3:$O$230,I15,3)),\"\")","v":""},"","",{"$error":"#N/A"},{"$error":"#N/A"},{"$error":"#N/A"},{"$error":"#N/A"}]
["",{"$f":"IFERROR(IF(D16<>$D$5,\"\",INDEX(jugcopafem!$A$3:$O$230,A16,3)),\"\")","v":""},"","",{"$error":"#N/A"},{"$error":"#N/A"},{"$error":"#N/A"},{"$error":"#N/A"},"",{"$f":"IFERROR(IF(L16<>$L$5,\"\",INDEX(jugcopafem!$A$3:$O$230,I16,3)),\"\")","v":""},"","",{"$error":"#N/A"},{"$error":"#N/A"},{"$error":"#N/A"},{"$error":"#N/A"}]
["",{"$f":"IFERROR(IF(D17<>$D$5,\"\",INDEX(jugcopafem!$A$3:$O$230,A17,3)),\"\")","v":""},"","",{"$error":"#N/A"},{"$error":"#N/A"},{"$error":"#N/A"},{"$error":"#N/A"},"",{"$f":"IFERROR(IF(L17<>$L$5,\"\",INDEX(jugcopafem!$A$3:$O$230,I17,3)),\"\")","v":""},"","",{"$error":"#N/A"},{"$error":"#N/A"},{"$error":"#N/A"},{"$error":"#N/A"}]
["",{"$f":"IFERROR(IF(D18<>$D$5,\"\",INDEX(jugcopafem!$A$3:$O$230,A18,3)),\"\")","v":""},"","",{"$error":"#N/A"},{"$error":"#N/A"},{"$error":"#N/A"},{"$error":"#N/A"},"",{"$f":"IFERROR(IF(L18<>$L$5,\"\",INDEX(jugcopafem!$A$3:$O$230,I18,3)),\"\")","v":""},"","",{"$error":"#N/A"},{"$error":"#N/A"},{"$error":"#N/A"},{"$error":"#N/A"}]
["",{"$f":"IFERROR(IF(D19<>$D$5,\"\",INDEX(jugcopafem!$A$3:$O$230,A19,3)),\"\")","v":""},"","",{"$error":"#N/A"},{"$error":"#N/A"},{"$error":"#N/A"},{"$error":"#N/A"},"",{"$f":"IFERROR(IF(L19<>$L$5,\"\",INDEX(jugcopafem!$A$3:$O$230,I19,3)),\"\")","v":""},"","",{"$error":"#N/A"},{"$error":"#N/A"},{"$error":"#N/A"},{"$error":"#N/A"}]
["",{"$f":"IFERROR(IF(D20<>$D$5,\"\",INDEX(jugcopafem!$A$3:$O$230,A20,3)),\"\")","v":""},"","",{"$error":"#N/A"},{"$error":"#N/A"},{"$error":"#N/A"},{"$error":"#N/A"},"",{"$f":"IFERROR(IF(L20<>$L$5,\"\",INDEX(jugcopafem!$A$3:$O$230,I20,3)),\"\")","v":""},"","",{"$error":"#N/A"},{"$error":"#N/A"},{"$error":"#N/A"},{"$error":"#N/A"}]
["",{"$f":"IFERROR(IF(D21<>$D$5,\"\",INDEX(jugcopafem!$A$3:$O$230,A21,3)),\"\")","v":""},"","",{"$error":"#N/A"},{"$error":"#N/A"},{"$error":"#N/A"},{"$error":"#N/A"},"",{"$f":"IFERROR(IF(L21<>$L$5,\"\",INDEX(jugcopafem!$A$3:$O$230,I21,3)),\"\")","v":""},"","",{"$error":"#N/A"},{"$error":"#N/A"},{"$error":"#N/A"},{"$error":"#N/A"}]
["",{"$f":"IFERROR(IF(D22<>$D$5,\"\",INDEX(jugcopafem!$A$3:$O$230,A22,3)),\"\")","v":""},"","",{"$error":"#N/A"},{"$error":"#N/A"},{"$error":"#N/A"},{"$error":"#N/A"},"",{"$f":"IFERROR(IF(L22<>$L$5,\"\",INDEX(jugcopafem!$A$3:$O$230,I22,3)),\"\")","v":""},"","",{"$error":"#N/A"},{"$error":"#N/A"},{"$error":"#N/A"},{"$error":"#N/A"}]
["",{"$f":"IFERROR(IF(D23<>$D$5,\"\",INDEX(jugcopafem!$A$3:$O$230,A23,3)),\"\")","v":""},"","",{"$error":"#N/A"},{"$error":"#N/A"},{"$error":"#N/A"},{"$error":"#N/A"},"",{"$f":"IFERROR(IF(L23<>$L$5,\"\",INDEX(jugcopafem!$A$3:$O$230,I23,3)),\"\")","v":""},"","",{"$error":"#N/A"},{"$error":"#N/A"},{"$error":"#N/A"},{"$error":"#N/A"}]
["",{"$f":"IFERROR(IF(D24<>$D$5,\"\",INDEX(jugcopafem!$A$3:$O$230,A24,3)),\"\")","v":""},"","",{"$error":"#N/A"},{"$error":"#N/A"},{"$error":"#N/A"},{"$error":"#N/A"},"",{"$f":"IFERROR(IF(L24<>$L$5,\"\",INDEX(jugcopafem!$A$3:$O$230,I24,3)),\"\")","v":""},"","",{"$error":"#N/A"},{"$error":"#N/A"},{"$error":"#N/A"},{"$error":"#N/A"}]
["",{"$f":"IFERROR(IF(D25<>$D$5,\"\",INDEX(jugcopafem!$A$3:$O$230,A25,3)),\"\")","v":""},"","",{"$error":"#N/A"},{"$error":"#N/A"},{"$error":"#N/A"},{"$error":"#N/A"},"",{"$f":"IFERROR(IF(L25<>$L$5,\"\",INDEX(jugcopafem!$A$3:$O$230,I25,3)),\"\")","v":""},"","",{"$error":"#N/A"},{"$error":"#N/A"},{"$error":"#N/A"},{"$error":"#N/A"}]
["",{"$f":"IFERROR(IF(D26<>$D$5,\"\",INDEX(jugcopafem!$A$3:$O$230,A26,3)),\"\")","v":""},"","",{"$error":"#N/A"},{"$error":"#N/A"},{"$error":"#N/A"},{"$error":"#N/A"},"",{"$f":"IFERROR(IF(L26<>$L$5,\"\",INDEX(jugcopafem!$A$3:$O$230,I26,3)),\"\")","v":""},"","",{"$f":"IF(L26<>$L$5,\"\",INDEX(INDEX,I26,6))","v":{"$error":"#N/A"}},{"$f":"IF(L26<>$L$5,\"\",INDEX(INDEX,I26,7))","v":{"$error":"#N/A"}},{"$f":"IF(L26<>$L$5,\"\",INDEX(INDEX,I26,9))","v":{"$error":"#N/A"}},{"$f":"IF(L26<>$L$5,\"\",INDEX(INDEX,I26,2))","v":{"$error":"#N/A"}}]
["",{"$f":"IFERROR(IF(D27<>$D$5,\"\",INDEX(jugcopafem!$A$3:$O$230,A27,3)),\"\")","v":""},"","",{"$error":"#N/A"},{"$error":"#N/A"},{"$error":"#N/A"},{"$error":"#N/A"},"",{"$f":"IFERROR(IF(L27<>$L$5,\"\",INDEX(jugcopafem!$A$3:$O$230,I27,3)),\"\")","v":""},"","",{"$error":"#N/A"},{"$error":"#N/A"},{"$error":"#N/A"},{"$error":"#N/A"}]
["",{"$f":"IFERROR(IF(D28<>$D$5,\"\",INDEX(jugcopafem!$A$3:$O$230,A28,3)),\"\")","v":""},"","",{"$error":"#N/A"},{"$error":"#N/A"},{"$error":"#N/A"},{"$error":"#N/A"},"",{"$f":"IFERROR(IF(L28<>$L$5,\"\",INDEX(jugcopafem!$A$3:$O$230,I28,3)),\"\")","v":""},"","",{"$error":"#N/A"},{"$error":"#N/A"},{"$error":"#N/A"},{"$error":"#N/A"}]
["",{"$f":"IFERROR(IF(D29<>$D$5,\"\",INDEX(jugcopafem!$A$3:$O$230,A29,3)),\"\")","v":""},"","",{"$error":"#N/A"},{"$error":"#N/A"},{"$error":"#N/A"},{"$error":"#N/A"},"",{"$f":"IFERROR(IF(L29<>$L$5,\"\",INDEX(jugcopafem!$A$3:$O$230,I29,3)),\"\")","v":""},"","",{"$error":"#N/A"},{"$error":"#N/A"},{"$error":"#N/A"},{"$error":"#N/A"}]
["",{"$f":"IFERROR(IF(D30<>$D$5,\"\",INDEX(jugcopafem!$A$3:$O$230,A30,3)),\"\")","v":""},"","",{"$error":"#N/A"},{"$error":"#N/A"},{"$error":"#N/A"},{"$error":"#N/A"},"",{"$f":"IFERROR(IF(L30<>$L$5,\"\",INDEX(jugcopafem!$A$3:$O$230,I30,3)),\"\")","v":""},"","",{"$error":"#N/A"},{"$error":"#N/A"},{"$error":"#N/A"},{"$error":"#N/A"}]
["",{"$f":"IFERROR(IF(D31<>$D$5,\"\",INDEX(jugcopafem!$A$3:$O$230,A31,3)),\"\")","v":""},"","",{"$error":"#N/A"},{"$error":"#N/A"},{"$error":"#N/A"},{"$error":"#N/A"},"",{"$f":"IFERROR(IF(L31<>$L$5,\"\",INDEX(jugcopafem!$A$3:$O$230,I31,3)),\"\")","v":""},"","",{"$error":"#N/A"},{"$error":"#N/A"},{"$error":"#N/A"},{"$error":"#N/A"}]
["",{"$f":"IFERROR(IF(D32<>$D$5,\"\",INDEX(jugcopafem!$A$3:$O$230,A32,3)),\"\")","v":""},"","",{"$error":"#N/A"},{"$error":"#N/A"},{"$error":"#N/A"},{"$error":"#N/A"},"",{"$f":"IFERROR(IF(L32<>$L$5,\"\",INDEX(jugcopafem!$A$3:$O$230,I32,3)),\"\")","v":""},"","",{"$error":"#N/A"},{"$error":"#N/A"},{"$error":"#N/A"},{"$error":"#N/A"}]
["",{"$f":"IFERROR(IF(D33<>$D$5,\"\",INDEX(jugcopafem!$A$3:$O$230,A33,3)),\"\")","v":""},"","",{"$error":"#N/A"},{"$error":"#N/A"},{"$error":"#N/A"},{"$error":"#N/A"},"",{"$f":"IFERROR(IF(L33<>$L$5,\"\",INDEX(jugcopafem!$A$3:$O$230,I33,3)),\"\")","v":""},"","",{"$error":"#N/A"},{"$error":"#N/A"},{"$error":"#N/A"},{"$error":"#N/A"}]
["",{"$f":"IFERROR(IF(D34<>$D$5,\"\",INDEX(jugcopafem!$A$3:$O$230,A34,3)),\"\")","v":""},"","",{"$error":"#N/A"},{"$error":"#N/A"},{"$error":"#N/A"},{"$error":"#N/A"},"",{"$f":"IFERROR(IF(L34<>$L$5,\"\",INDEX(jugcopafem!$A$3:$O$230,I34,3)),\"\")","v":""},"","",{"$error":"#N/A"},{"$error":"#N/A"},{"$error":"#N/A"},{"$error":"#N/A"}]
["",{"$f":"IFERROR(IF(D35<>$D$5,\"\",INDEX(jugcopafem!$A$3:$O$230,A35,3)),\"\")","v":""},"","",{"$error":"#N/A"},{"$error":"#N/A"},{"$error":"#N/A"},{"$error":"#N/A"},"",{"$f":"IFERROR(IF(L35<>$L$5,\"\",INDEX(jugcopafem!$A$3:$O$230,I35,3)),\"\")","v":""},"","",{"$error":"#N/A"},{"$error":"#N/A"},{"$error":"#N/A"},{"$error":"#N/A"}]
["",{"$f":"IFERROR(IF(D36<>$D$5,\"\",INDEX(jugcopafem!$A$3:$O$230,A36,3)),\"\")","v":""},"","",{"$error":"#N/A"},{"$error":"#N/A"},{"$error":"#N/A"},{"$error":"#N/A"},"",{"$f":"IFERROR(IF(L36<>$L$5,\"\",INDEX(jugcopafem!$A$3:$O$230,I36,3)),\"\")","v":""},"","",{"$error":"#N/A"},{"$error":"#N/A"},{"$error":"#N/A"},{"$error":"#N/A"}]
["",{"$f":"IFERROR(IF(D37<>$D$5,\"\",INDEX(jugcopafem!$A$3:$O$230,A37,3)),\"\")","v":""},"","",{"$error":"#N/A"},{"$error":"#N/A"},{"$error":"#N/A"},{"$error":"#N/A"},"",{"$f":"IFERROR(IF(L37<>$L$5,\"\",INDEX(jugcopafem!$A$3:$O$230,I37,3)),\"\")","v":""},"","",{"$error":"#N/A"},{"$error":"#N/A"},{"$error":"#N/A"},{"$error":"#N/A"}]
["",{"$f":"IFERROR(IF(D38<>$D$5,\"\",INDEX(jugcopafem!$A$3:$O$230,A38,3)),\"\")","v":""},"","",{"$error":"#N/A"},{"$error":"#N/A"},{"$error":"#N/A"},{"$error":"#N/A"},"",{"$f":"IFERROR(IF(L38<>$L$5,\"\",INDEX(jugcopafem!$A$3:$O$230,I38,3)),\"\")","v":""},{"$f":"IFERROR(IF(L38<>$L$5,\"\",INDEX(INDEX,I38,4)),\"\")","v":""},{"$f":"IFERROR(IF(INDEX(INDEX,I38,12)<>$J$5,\"\",INDEX(INDEX,I38,8)),\"\")","v":""},{"$error":"#N/A"},{"$error":"#N/A"},{"$error":"#N/A"},{"$error":"#N/A"}]
[{"$f":"IFERROR(A38+1,\"\")","v":""},{"$f":"IFERROR(IF(D39<>$D$5,\"\",INDEX(jugcopafem!$A$3:$O$230,A39,3)),\"\")","v":""},"","",{"$error":"#N/A"},{"$error":"#N/A"},{"$error":"#N/A"},{"$error":"#N/A"},"",{"$f":"IFERROR(IF(L39<>$L$5,\"\",INDEX(jugcopafem!$A$3:$O$230,I39,3)),\"\")","v":""},"","",{"$error":"#N/A"},{"$error":"#N/A"},{"$error":"#N/A"},{"$error":"#N/A"}]
["",{"$f":"IFERROR(IF(D40<>$D$5,\"\",INDEX(jugcopafem!$A$3:$O$230,A40,3)),\"\")","v":""},"","",{"$error":"#N/A"},{"$error":"#N/A"},{"$error":"#N/A"},{"$error":"#N/A"},"",{"$f":"IFERROR(IF(L40<>$L$5,\"\",INDEX(jugcopafem!$A$3:$O$230,I40,3)),\"\")","v":""},"","",{"$error":"#N/A"},{"$error":"#N/A"},{"$error":"#N/A"},{"$error":"#N/A"}]
["",{"$f":"IFERROR(IF(D41<>$D$5,\"\",INDEX(jugcopafem!$A$3:$O$230,A41,3)),\"\")","v":""},"","",{"$error":"#N/A"},{"$error":"#N/A"},{"$error":"#N/A"},{"$error":"#N/A"},"",{"$f":"IFERROR(IF(L41<>$L$5,\"\",INDEX(jugcopafem!$A$3:$O$230,I41,3)),\"\")","v":""},"","",{"$error":"#N/A"},{"$error":"#N/A"},{"$error":"#N/A"},{"$error":"#N/A"}]
["",{"$f":"IFERROR(IF(D42<>$D$5,\"\",INDEX(jugcopafem!$A$3:$O$230,A42,3)),\"\")","v":""},"","",{"$error":"#N/A"},{"$error":"#N/A"},{"$error":"#N/A"},{"$error":"#N/A"},"",{"$f":"IFERROR(IF(L42<>$L$5,\"\",INDEX(jugcopafem!$A$3:$O$230,I42,3)),\"\")","v":""},"","",{"$error":"#N/A"},{"$error":"#N/A"},{"$error":"#N/A"},{"$error":"#N/A"}]
["",{"$f":"IFERROR(IF(D43<>$D$5,\"\",INDEX(jugcopafem!$A$3:$O$230,A43,3)),\"\")","v":""},"","",{"$error":"#N/A"},{"$error":"#N/A"},{"$error":"#N/A"},{"$error":"#N/A"},"",{"$f":"IFERROR(IF(L43<>$L$5,\"\",INDEX(jugcopafem!$A$3:$O$230,I43,3)),\"\")","v":""},"","",{"$error":"#N/A"},{"$error":"#N/A"},{"$error":"#N/A"},{"$error":"#N/A"}]
["",{"$f":"IFERROR(IF(D44<>$D$5,\"\",INDEX(jugcopafem!$A$3:$O$230,A44,3)),\"\")","v":""},"","",{"$error":"#N/A"},{"$error":"#N/A"},{"$error":"#N/A"},{"$error":"#N/A"},"",{"$f":"IFERROR(IF(L44<>$L$5,\"\",INDEX(jugcopafem!$A$3:$O$230,I44,3)),\"\")","v":""},"","",{"$error":"#N/A"},{"$error":"#N/A"},{"$error":"#N/A"},{"$error":"#N/A"}]
["",{"$f":"IFERROR(IF(D45<>$D$5,\"\",INDEX(jugcopafem!$A$3:$O$230,A45,3)),\"\")","v":""},"","",{"$error":"#N/A"},{"$error":"#N/A"},{"$error":"#N/A"},{"$error":"#N/A"},"",{"$f":"IFERROR(IF(L45<>$L$5,\"\",INDEX(jugcopafem!$A$3:$O$230,I45,3)),\"\")","v":""},"","",{"$error":"#N/A"},{"$error":"#N/A"},{"$error":"#N/A"},{"$error":"#N/A"}]
["",{"$f":"IFERROR(IF(D46<>$D$5,\"\",INDEX(jugcopafem!$A$3:$O$230,A46,3)),\"\")","v":""},{"$f":"IFERROR(IF(D46<>$D$5,\"\",INDEX(INDEX,A46,4)),\"\")","v":""},{"$f":"IFERROR(IF(INDEX(INDEX,A46,12)<>$B$5,\"\",INDEX(INDEX,A46,8)),\"\")","v":""},{"$error":"#N/A"},{"$error":"#N/A"},{"$error":"#N/A"},{"$error":"#N/A"},"",{"$f":"IFERROR(IF(L46<>$L$5,\"\",INDEX(jugcopafem!$A$3:$O$230,I46,3)),\"\")","v":""},"","",{"$error":"#N/A"},{"$error":"#N/A"},{"$error":"#N/A"},{"$error":"#N/A"}]
["",{"$f":"IFERROR(IF(D47<>$D$5,\"\",INDEX(jugcopafem!$A$3:$O$230,A47,3)),\"\")","v":""},"","",{"$error":"#N/A"},{"$error":"#N/A"},{"$error":"#N/A"},{"$error":"#N/A"},"",{"$f":"IFERROR(IF(L47<>$L$5,\"\",INDEX(jugcopafem!$A$3:$O$230,I47,3)),\"\")","v":""},"","",{"$error":"#N/A"},{"$error":"#N/A"},{"$error":"#N/A"},{"$error":"#N/A"}]
["",{"$f":"IFERROR(IF(D48<>$D$5,\"\",INDEX(jugcopafem!$A$3:$O$230,A48,3)),\"\")","v":""},"","",{"$error":"#N/A"},{"$error":"#N/A"},{"$error":"#N/A"},{"$error":"#N/A"},"",{"$f":"IFERROR(IF(L48<>$L$5,\"\",INDEX(jugcopafem!$A$3:$O$230,I48,3)),\"\")","v":""},"","",{"$error":"#N/A"},{"$error":"#N/A"},{"$error":"#N/A"},{"$error":"#N/A"}]
["",{"$f":"IFERROR(IF(D49<>$D$5,\"\",INDEX(jugcopafem!$A$3:$O$230,A49,3)),\"\")","v":""},"","",{"$error":"#N/A"},{"$error":"#N/A"},{"$error":"#N/A"},{"$error":"#N/A"},"",{"$f":"IFERROR(IF(L49<>$L$5,\"\",INDEX(jugcopafem!$A$3:$O$230,I49,3)),\"\")","v":""},"","",{"$error":"#N/A"},{"$error":"#N/A"},{"$error":"#N/A"},{"$error":"#N/A"}]
["",{"$f":"IFERROR(IF(D50<>$D$5,\"\",INDEX(jugcopafem!$A$3:$O$230,A50,3)),\"\")","v":""},"","",{"$error":"#N/A"},{"$error":"#N/A"},{"$error":"#N/A"},{"$error":"#N/A"},"",{"$f":"IFERROR(IF(L50<>$L$5,\"\",INDEX(jugcopafem!$A$3:$O$230,I50,3)),\"\")","v":""},"","",{"$error":"#N/A"},{"$error":"#N/A"},{"$error":"#N/A"},{"$error":"#N/A"}]
["",{"$f":"IFERROR(IF(D51<>$D$5,\"\",INDEX(jugcopafem!$A$3:$O$230,A51,3)),\"\")","v":""},"","",{"$error":"#N/A"},{"$error":"#N/A"},{"$error":"#N/A"},{"$error":"#N/A"},"",{"$f":"IFERROR(IF(L51<>$L$5,\"\",INDEX(jugcopafem!$A$3:$O$230,I51,3)),\"\")","v":""},"","",{"$error":"#N/A"},{"$error":"#N/A"},{"$error":"#N/A"},{"$error":"#N/A"}]
["",{"$f":"IFERROR(IF(D52<>$D$5,\"\",INDEX(jugcopafem!$A$3:$O$230,A52,3)),\"\")","v":""},"","",{"$error":"#N/A"},{"$error":"#N/A"},{"$error":"#N/A"},{"$error":"#N/A"},"",{"$f":"IFERROR(IF(L52<>$L$5,\"\",INDEX(jugcopafem!$A$3:$O$230,I52,3)),\"\")","v":""},"","",{"$error":"#N/A"},{"$error":"#N/A"},{"$error":"#N/A"},{"$error":"#N/A"}]
["",{"$f":"IFERROR(IF(D53<>$D$5,\"\",INDEX(jugcopafem!$A$3:$O$230,A53,3)),\"\")","v":""},"","",{"$error":"#N/A"},{"$error":"#N/A"},{"$error":"#N/A"},{"$error":"#N/A"},"",{"$f":"IFERROR(IF(L53<>$L$5,\"\",INDEX(jugcopafem!$A$3:$O$230,I53,3)),\"\")","v":""},"","",{"$error":"#N/A"},{"$error":"#N/A"},{"$error":"#N/A"},{"$error":"#N/A"}]
["",{"$f":"IFERROR(IF(D54<>$D$5,\"\",INDEX(jugcopafem!$A$3:$O$230,A54,3)),\"\")","v":""},"","",{"$error":"#N/A"},{"$error":"#N/A"},{"$error":"#N/A"},{"$error":"#N/A"},"",{"$f":"IFERROR(IF(L54<>$L$5,\"\",INDEX(jugcopafem!$A$3:$O$230,I54,3)),\"\")","v":""},"","",{"$error":"#N/A"},{"$error":"#N/A"},{"$error":"#N/A"},{"$error":"#N/A"}]
["",{"$f":"IFERROR(IF(D55<>$D$5,\"\",INDEX(jugcopafem!$A$3:$O$230,A55,3)),\"\")","v":""},"","",{"$error":"#N/A"},{"$error":"#N/A"},{"$error":"#N/A"},{"$error":"#N/A"},"",{"$f":"IFERROR(IF(L55<>$L$5,\"\",INDEX(jugcopafem!$A$3:$O$230,I55,3)),\"\")","v":""},"","",{"$error":"#N/A"},{"$error":"#N/A"},{"$error":"#N/A"},{"$error":"#N/A"}]
["",{"$f":"IFERROR(IF(D56<>$D$5,\"\",INDEX(jugcopafem!$A$3:$O$230,A56,3)),\"\")","v":""},"","",{"$error":"#N/A"},{"$error":"#N/A"},{"$error":"#N/A"},{"$error":"#N/A"},"",{"$f":"IFERROR(IF(L56<>$L$5,\"\",INDEX(jugcopafem!$A$3:$O$230,I56,3)),\"\")","v":""},"","",{"$error":"#N/A"},{"$error":"#N/A"},{"$error":"#N/A"},{"$error":"#N/A"}]
["",{"$f":"IFERROR(IF(D57<>$D$5,\"\",INDEX(jugcopafem!$A$3:$O$230,A57,3)),\"\")","v":""},"","",{"$error":"#N/A"},{"$error":"#N/A"},{"$error":"#N/A"},{"$error":"#N/A"},"",{"$f":"IFERROR(IF(L57<>$L$5,\"\",INDEX(jugcopafem!$A$3:$O$230,I57,3)),\"\")","v":""},"","",{"$error":"#N/A"},{"$error":"#N/A"},{"$error":"#N/A"},{"$error":"#N/A"}]
["",{"$f":"IFERROR(IF(D58<>$D$5,\"\",INDEX(jugcopafem!$A$3:$O$230,A58,3)),\"\")","v":""},"","",{"$error":"#N/A"},{"$error":"#N/A"},{"$error":"#N/A"},{"$error":"#N/A"},"",{"$f":"IFERROR(IF(L58<>$L$5,\"\",INDEX(jugcopafem!$A$3:$O$230,I58,3)),\"\")","v":""},"","",{"$error":"#N/A"},{"$error":"#N/A"},{"$error":"#N/A"},{"$error":"#N/A"}]
["",{"$f":"IFERROR(IF(D59<>$D$5,\"\",INDEX(jugcopafem!$A$3:$O$230,A59,3)),\"\")","v":""},"","",{"$error":"#N/A"},{"$error":"#N/A"},{"$error":"#N/A"},{"$error":"#N/A"},"",{"$f":"IFERROR(IF(L59<>$L$5,\"\",INDEX(jugcopafem!$A$3:$O$230,I59,3)),\"\")","v":""},"","",{"$error":"#N/A"},{"$error":"#N/A"},{"$error":"#N/A"},{"$error":"#N/A"}]
["",{"$f":"IFERROR(IF(D60<>$D$5,\"\",INDEX(jugcopafem!$A$3:$O$230,A60,3)),\"\")","v":""},"","",{"$error":"#N/A"},{"$error":"#N/A"},{"$error":"#N/A"},{"$error":"#N/A"},"",{"$f":"IFERROR(IF(L60<>$L$5,\"\",INDEX(jugcopafem!$A$3:$O$230,I60,3)),\"\")","v":""},"","",{"$error":"#N/A"},{"$error":"#N/A"},{"$error":"#N/A"},{"$error":"#N/A"}]
["",{"$f":"IFERROR(IF(D61<>$D$5,\"\",INDEX(jugcopafem!$A$3:$O$230,A61,3)),\"\")","v":""},"","",{"$error":"#N/A"},{"$error":"#N/A"},{"$error":"#N/A"},{"$error":"#N/A"},"",{"$f":"IFERROR(IF(L61<>$L$5,\"\",INDEX(jugcopafem!$A$3:$O$230,I61,3)),\"\")","v":""},"","",{"$error":"#N/A"},{"$error":"#N/A"},{"$error":"#N/A"},{"$error":"#N/A"}]
["",{"$f":"IFERROR(IF(D62<>$D$5,\"\",INDEX(jugcopafem!$A$3:$O$230,A62,3)),\"\")","v":""},"","",{"$error":"#N/A"},{"$error":"#N/A"},{"$error":"#N/A"},{"$error":"#N/A"},"",{"$f":"IFERROR(IF(L62<>$L$5,\"\",INDEX(jugcopafem!$A$3:$O$230,I62,3)),\"\")","v":""},"","",{"$error":"#N/A"},{"$error":"#N/A"},{"$error":"#N/A"},{"$error":"#N/A"}]
["",{"$f":"IFERROR(IF(D63<>$D$5,\"\",INDEX(jugcopafem!$A$3:$O$230,A63,3)),\"\")","v":""},"","",{"$error":"#N/A"},{"$error":"#N/A"},{"$error":"#N/A"},{"$error":"#N/A"},"",{"$f":"IFERROR(IF(L63<>$L$5,\"\",INDEX(jugcopafem!$A$3:$O$230,I63,3)),\"\")","v":""},"","",{"$error":"#N/A"},{"$error":"#N/A"},{"$error":"#N/A"},{"$error":"#N/A"}]
["",{"$f":"IFERROR(IF(D64<>$D$5,\"\",INDEX(jugcopafem!$A$3:$O$230,A64,3)),\"\")","v":""},"","",{"$error":"#N/A"},{"$error":"#N/A"},{"$error":"#N/A"},{"$error":"#N/A"},"",{"$f":"IFERROR(IF(L64<>$L$5,\"\",INDEX(jugcopafem!$A$3:$O$230,I64,3)),\"\")","v":""},"","",{"$error":"#N/A"},{"$error":"#N/A"},{"$error":"#N/A"},{"$error":"#N/A"}]
["",{"$f":"IFERROR(IF(D65<>$D$5,\"\",INDEX(jugcopafem!$A$3:$O$230,A65,3)),\"\")","v":""},"","",{"$error":"#N/A"},{"$error":"#N/A"},{"$error":"#N/A"},{"$error":"#N/A"},"",{"$f":"IFERROR(IF(L65<>$L$5,\"\",INDEX(jugcopafem!$A$3:$O$230,I65,3)),\"\")","v":""},"","",{"$error":"#N/A"},{"$error":"#N/A"},{"$error":"#N/A"},{"$error":"#N/A"}]
["",{"$f":"IFERROR(IF(D66<>$D$5,\"\",INDEX(jugcopafem!$A$3:$O$230,A66,3)),\"\")","v":""},"","",{"$error":"#N/A"},{"$error":"#N/A"},{"$error":"#N/A"},{"$error":"#N/A"},"",{"$f":"IFERROR(IF(L66<>$L$5,\"\",INDEX(jugcopafem!$A$3:$O$230,I66,3)),\"\")","v":""},"","",{"$error":"#N/A"},{"$error":"#N/A"},{"$error":"#N/A"},{"$error":"#N/A"}]
["",{"$f":"IFERROR(IF(D67<>$D$5,\"\",INDEX(jugcopafem!$A$3:$O$230,A67,3)),\"\")","v":""},"","",{"$error":"#N/A"},{"$error":"#N/A"},{"$error":"#N/A"},{"$error":"#N/A"},"",{"$f":"IFERROR(IF(L67<>$L$5,\"\",INDEX(jugcopafem!$A$3:$O$230,I67,3)),\"\")","v":""},"","",{"$error":"#N/A"},{"$error":"#N/A"},{"$error":"#N/A"},{"$error":"#N/A"}]
["",{"$f":"IFERROR(IF(D68<>$D$5,\"\",INDEX(jugcopafem!$A$3:$O$230,A68,3)),\"\")","v":""},"","",{"$error":"#N/A"},{"$error":"#N/A"},{"$error":"#N/A"},{"$error":"#N/A"},"",{"$f":"IFERROR(IF(L68<>$L$5,\"\",INDEX(jugcopafem!$A$3:$O$230,I68,3)),\"\")","v":""},"","",{"$error":"#N/A"},{"$error":"#N/A"},{"$error":"#N/A"},{"$error":"#N/A"}]

{"sheet":"jugcopafem","index":3,"n_rows":148,"n_cols":12,"rows_kept":148,"cut":false,"hidden":true,"merged":[]}
[]
["INDEX","AB","NP","TITULAR","SEX","NAC","ED22/23","CLUB","CLASSE","ANY","observ","EQUIP"]
[1,"ABC",15239,"ARAQUE Aina","F","ESP","ALE-1","GANXETA","A2",2011,"",101]
[2,"ABC",14468,"BAKSEJEVA Varvara","F","NO NAC","BEN-1","GANXETA","C",2013,"",101]
[3,"ABC",15046,"BAQUEDANO Sofia","F","ESP","INF-1","GANXETA","A2",2009,"",101]
[4,"ABC",16257,"BRIGITTE Eerland","F","NO NAC","SEN","GANXETA","A2",1994,"",101]
[5,"ABC",16278,"ENRIQUEZ Malbelyn Adriana","F","NO NAC","SEN","GANXETA","A2",1995,"",101]
[6,"ABC",16261,"GARCÍA Alba","F","ESP","JUV-2","GANXETA","A2",2005,"",101]
[7,"ABC",14542,"KUZNETSOVA Mariia","F","NO NAC","INF-2","GANXETA","A2",2008,"",101]
[8,"ABC",16538,"LAM Yee Lok","F","NO NAC","SEN","GANXETA","A2",1996,"",101]
[9,"ABC",14588,"MANRESA Jana","F","ESP","ALE-1","GANXETA","A2",2011,"",101]
[10,"ABC",14535,"MARTINEZ Kira","F","ESP","PRE-0","GANXETA","C",2014,"",101]
[11,"ABC",4342,"NIKOLAEVA Vesela","F","ESP","V+50","GANXETA","B",1966,"",101]
[12,"ABC",14538,"NIKOLAEWNA Sofia","F","ESP","BEN-1","GANXETA","C",2013,"",101]
[13,"ABC",16260,"RAD Elvira","F","ESP","JUV-3","GANXETA","A2",2004,"",101]
[14,"ABC",2287,"RAMIREZ Sara","F","ESP","SEN","GANXETA","A2",1987,"",101]
[15,"ABC",16651,"RIBES Abril","F","ESP","INF-3","GANXETA","C",2007,"",101]
[16,"ABC",16259,"RODRIGUES Inês","F","NO NAC","JUV-3","GANXETA","A2",2004,"",101]
[17,"ABC",12518,"SHYPSHA Renata","F","NO NAC","ALE-2","GANXETA","A2",2010,"",101]
[18,"ABC",9153,"SKOBKINA Svetlana","F","ESP","V+50","GANXETA","A2",1972,"",101]
[19,"ABC",16263,"SMIRNOVA Margarita","F","NO NAC","V+40","GANXETA","A2",1978,"",101]
[20,"ABC",16262,"STEFANOVA Nikoleta","F","NO NAC","SEN","GANXETA","A2",1984,"",101]
[21,"ABC",14682,"TEIJEIRO Noelia","F","ESP","SEN","GANXETA","A2",1990,"",101]
[22,"ABC",14887,"TOLIOU Alkaterini","F","NO NAC","SEN","GANXETA","A2",1995,"",101]
[23,"ABC",16258,"VEGA Maria Paulina","F","NO NAC","SEN","GANXETA","A2",1984,"",101]
[24,"ABC",6012,"VIRGILI Alba","F","ESP","S21-2","GANXETA","A2",2002,"",101]
[25,"ABC",6011,"VIRGILI Jordina","F","ESP","SEN","GANXETA","A2",2000,"",101]
[26,"ABC",14487,"YAMADA Jessica","F","NO NAC","SEN","GANXETA","A2",1989,"",101]
[27,"ABC",15239,"ARAQUE Aina","F","ESP","ALE-1","GANXETC","A2",2011,"",102]
[28,"ABC",14468,"BAKSEJEVA Varvara","F","NO NAC","BEN-1","GANXETC","C",2013,"",102]
[29,"ABC",15046,"BAQUEDANO Sofia","F","ESP","INF-1","GANXETC","A2",2009,"",102]
[30,"ABC",16257,"BRIGITTE Eerland","F","NO NAC","SEN","GANXETC","A2",1994,"",102]
[31,"ABC",16278,"ENRIQUEZ Malbelyn Adriana","F","NO NAC","SEN","GANXETC","A2",1995,"",102]
[32,"ABC",16261,"GARCÍA Alba","F","ESP","JUV-2","GANXETC","A2",2005,"",102]
[33,"ABC",14542,"KUZNETSOVA Mariia","F","NO NAC","INF-2","GANXETC","A2",2008,"",102]
[34,"ABC",16538,"LAM Yee Lok","F","NO NAC","SEN","GANXETC","A2",1996,"",102]
[35,"ABC",14588,"MANRESA Jana","F","ESP","ALE-1","GANXETC","A2",2011,"",102]
[36,"ABC",14535,"MARTINEZ Kira","F","ESP","PRE-0","GANXETC","C",2014,"",102]
[37,"ABC",4342,"NIKOLAEVA Vesela","F","ESP","V+50","GANXETC","B",1966,"",102]
[38,"ABC",14538,"NIKOLAEWNA Sofia","F","ESP","BEN-1","GANXETC","C",2013,"",102]
[39,"ABC",16260,"RAD Elvira","F","ESP","JUV-3","GANXETC","A2",2004,"",102]
[40,"ABC",2287,"RAMIREZ Sara","F","ESP","SEN","GANXETC","A2",1987,"",102]
[41,"ABC",16651,"RIBES Abril","F","ESP","INF-3","GANXETC","C",2007,"",102]
[42,"ABC",16259,"RODRIGUES Inês","F","NO NAC","JUV-3","GANXETC","A2",2004,"",102]
[43,"ABC",12518,"SHYPSHA Renata","F","NO NAC","ALE-2","GANXETC","A2",2010,"",102]
[44,"ABC",9153,"SKOBKINA Svetlana","F","ESP","V+50","GANXETC","A2",1972,"",102]
[45,"ABC",16263,"SMIRNOVA Margarita","F","NO NAC","V+40","GANXETC","A2",1978,"",102]
[46,"ABC",16262,"STEFANOVA Nikoleta","F","NO NAC","SEN","GANXETC","A2",1984,"",102]
[47,"ABC",14682,"TEIJEIRO Noelia","F","ESP","SEN","GANXETC","A2",1990,"",102]
[48,"ABC",14887,"TOLIOU Alkaterini","F","NO NAC","SEN","GANXETC","A2",1995,"",102]
[49,"ABC",16258,"VEGA Maria Paulina","F","NO NAC","SEN","GANXETC","A2",1984,"",102]
[50,"ABC",6012,"VIRGILI Alba","F","ESP","S21-2","GANXETC","A2",2002,"",102]
[51,"ABC",6011,"VIRGILI Jordina","F","ESP","SEN","GANXETC","A2",2000,"",102]
[52,"ABC",14487,"YAMADA Jessica","F","NO NAC","SEN","GANXETC","A2",1989,"",102]
[53,"ABC",15239,"ARAQUE Aina","F","ESP","ALE-1","GANXETB","A2",2011,"",103]
[54,"ABC",14468,"BAKSEJEVA Varvara","F","NO NAC","BEN-1","GANXETB","C",2013,"",103]
[55,"ABC",15046,"BAQUEDANO Sofia","F","ESP","INF-1","GANXETB","A2",2009,"",103]
[56,"ABC",16257,"BRIGITTE Eerland","F","NO NAC","SEN","GANXETB","A2",1994,"",103]
[57,"ABC",16278,"ENRIQUEZ Malbelyn Adriana","F","NO NAC","SEN","GANXETB","A2",1995,"",103]
[58,"ABC",16261,"GARCÍA Alba","F","ESP","JUV-2","GANXETB","A2",2005,"",103]
[59,"ABC",14542,"KUZNETSOVA Mariia","F","NO NAC","INF-2","GANXETB","A2",2008,"",103]
[60,"ABC",16538,"LAM Yee Lok","F","NO NAC","SEN","GANXETB","A2",1996,"",103]
[61,"ABC",14588,"MANRESA Jana","F","ESP","ALE-1","GANXETB","A2",2011,"",103]
[62,"ABC",14535,"MARTINEZ Kira","F","ESP","PRE-0","GANXETB","C",2014,"",103]
[63,"ABC",4342,"NIKOLAEVA Vesela","F","ESP","V+50","GANXETB","B",1966,"",103]
[64,"ABC",14538,"NIKOLAEWNA Sofia","F","ESP","BEN-1","GANXETB","C",2013,"",103]
[65,"ABC",16260,"RAD Elvira","F","ESP","JUV-3","GANXETB","A2",2004,"",103]
[66,"ABC",2287,"RAMIREZ Sara","F","ESP","SEN","GANXETB","A2",1987,"",103]
[67,"ABC",16651,"RIBES Abril","F","ESP","INF-3","GANXETB","C",2007,"",103]
[68,"ABC",16259,"RODRIGUES Inês","F","NO NAC","JUV-3","GANXETB","A2",2004,"",103]
[69,"ABC",12518,"SHYPSHA Renata","F","NO NAC","ALE-2","GANXETB","A2",2010,"",103]
[70,"ABC",9153,"SKOBKINA Svetlana","F","ESP","V+50","GANXETB","A2",1972,"",103]
[71,"ABC",16263,"SMIRNOVA Margarita","F","NO NAC","V+40","GANXETB","A2",1978,"",103]
[72,"ABC",16262,"STEFANOVA Nikoleta","F","NO NAC","SEN","GANXETB","A2",1984,"",103]
[73,"ABC",14682,"TEIJEIRO Noelia","F","ESP","SEN","GANXETB","A2",1990,"",103]
[74,"ABC",14887,"TOLIOU Alkaterini","F","NO NAC","SEN","GANXETB","A2",1995,"",103]
[75,"ABC",16258,"VEGA Maria Paulina","F","NO NAC","SEN","GANXETB","A2",1984,"",103]
[76,"ABC",6012,"VIRGILI Alba","F","ESP","S21-2","GANXETB","A2",2002,"",103]
[77,"ABC",6011,"VIRGILI Jordina","F","ESP","SEN","GANXETB","A2",2000,"",103]
[78,"ABC",14487,"YAMADA Jessica","F","NO NAC","SEN","GANXETB","A2",1989,"",103]
[79,null,12685,"CASANOVAS Aina","F","ESP","BEN-2","CAMBRI","B",2012,"",104]
[80,null,15805,"EL Iman","F","ESP","PRE-0","CAMBRI","B",2014,"",104]
[81,null,15313,"EL Oumnia","F","ESP","BEN-2","CAMBRI","B",2012,"",104]
[82,null,15803,"MARTINEZ Paola","F","ESP","PRE-0","CAMBRI","B",2014,"",104]
[83,null,11702,"CICRES Elena","F","ESP","V+50","VILABL","A2",1970,"",105]
[84,null,6711,"CIFUENTES Judit","F","ESP","JUV-2","VILABL","A2",2005,"",105]
[85,null,8065,"NONO Elisenda","F","ESP","INF-3","VILABL","A2",2007,"",105]
[86,null,13227,"NONÓ Gemma","F","ESP","V+50","VILABL","A2",1968,"",105]
[87,null,8450,"SERRA Èlia","F","ESP","JUV-2","VILABL","A2",2005,"",105]
[88,null,13829,"SITJÀ Lia","F","ESP","PRE-0","VILABL","C",2015,"",105]
[89,null,6303,"CARREÑO Ariadna","F","ESP","SEN","ATEN82","A2",1990,"",106]
[90,null,14249,"FORNELLS Abril","F","ESP","S21-1","ATEN82","A2",2003,"",106]
[91,null,220,"INFANTE Julia","F","ESP","V+65","ATEN82","A2",1955,"",106]
[92,null,8429,"MARTINEZ Eva","F","ESP","SEN","ATEN82","A2",1995,"",106]
[93,null,16271,"OSUNA Lola","F","ESP","V+50","ATEN82","A2",1973,"",106]
[94,null,10760,"BLANCAFORT Anna","F","ESP","INF-3","ELS 8","A2",2007,"",107]
[95,null,10672,"CASTELLS Iris","F","ESP","INF-2","ELS 8","A2",2008,"",107]
[96,null,12244,"ESCODA Abril","F","ESP","INF-2","ELS 8","A2",2008,"",107]
[97,null,12511,"KOZHUKHOVA Irina","F","ESP","V+50","ELS 8","C",1965,"",107]
[98,null,8592,"LARRUBIA Raquel","F","ESP","JUV-1","ELS 8","A2",2006,"",107]
[99,null,13810,"MANZULLI Ainara","F","NO NAC","ALE-2","ELS 8","B",2010,"",107]
[100,null,16527,"MANZULLI Elia","F","ESP","PRE-0","ELS 8","C",2015,"",107]
[101,null,15837,"STAHNKE Iris","F","ESP","V+65","ELS 8","C",1955,"",107]
[102,null,8154,"VIDAL Abril","F","ESP","JUV-1","ELS 8","A2",2006,"",107]
[103,null,10681,"BARRAU Anna","F","ESP","JUV-1","AMICS","A2",2006,"",108]
[104,null,5929,"GARCIA Mar Africa","F","ESP","JUV-1","AMICS","A2",2006,"",108]
[105,null,10034,"MIGUELES María","F","ESP","JUV-2","AMICS","A2",2005,"",108]
[106,null,10854,"NAVACERRADA Estel","F","ESP","INF-1","AMICS","A2",2009,"",108]
[107,null,15023,"ONANDIA Marta","F","ESP","V+65","AMICS","C",1957,"",108]
[108,null,11561,"PAGÈS Anna","F","ESP","ALE-2","AMICS","A2",2010,"",108]
[109,null,13447,"PAGÈS Mireia","F","ESP","ALE-2","AMICS","A2",2010,"",108]
[110,null,852,"SERRES Maria","F","ESP","V+40","AMICS","A2",1977,"",108]
[111,null,843,"VILÀ Roser","F","ESP","V+40","AMICS","C",1977,"",108]
[112,null,12654,"DIPOLLINA Giulia","F","ESP","INF-3","VILANO","B",2007,"",109]
[113,null,12688,"PALAO Julia","F","ESP","SEN","VILANO","C",1986,"",109]
[114,null,14506,"BADIA Anna","F","ESP","V+60","VILASS","C",1962,"",110]
[115,null,12981,"CARBONELL Tura","F","ESP","V+50","VILASS","C",1973,"",110]
[116,null,458,"MUÑOZ M. Elena","F","ESP","V+50","VILASS","C",1964,"",110]
[117,null,12325,"PIÑOL Nuria","F","ESP","V+40","VILASS","C",1978,"",110]
[118,null,16461,"UHLIG Theres C. Wayra","F","ESP","V+40","VILASS","C",1977,"",110]
[119,null,12785,"AGUILERA Marta","F","ESP","INF-2","CNSABA","B",2008,"",111]
[120,null,13915,"ARDEVOL Ariadna","F","ESP","JUV-1","CNSABA","B",2006,"",111]
[121,null,15911,"HERNÁNDEZ Cristina","F","ESP","V+40","CNSABA","B",1980,"",111]
[122,null,13132,"LLOS Berta","F","ESP","SEN","CNSABA","C",1994,"",111]
[123,null,15559,"MATA Martina","F","ESP","ALE-2","CNSABA","B",2010,"",111]
[124,null,14710,"MATA Ona","F","ESP","INF-3","CNSABA","B",2007,"",111]
[125,null,4540,"WEISZ Monica","F","ESP","V+50","CNSABA","B",1969,"",111]
[126,null,8967,"WEISZ Montserrat","F","ESP","V+50","CNSABA","B",1969,"",111]
[127,null,14873,"YANG Karen","F","ESP","PRE-0","CNSABA","B",2015,"",111]
[128,null,12519,"BENET Elsa","F","ESP","BEN-2","BORGES","B",2012,"",112]
[129,null,8199,"CASANOVAS Laia","F","ESP","INF-2","BORGES","A2",2008,"",112]
[130,null,12634,"FARRÉ Èlia","F","ESP","INF-3","BORGES","B",2007,"",112]
[131,null,14456,"MONNÉ Anna","F","ESP","ALE-2","BORGES","B",2010,"",112]
[132,null,12203,"ROMA Neus","F","ESP","ALE-2","BORGES","A2",2010,"",112]
[133,null,12201,"ROMA Xènia","F","ESP","INF-3","BORGES","A2",2007,"",112]
[134,null,5305,"SOLANS Edna","F","ESP","JUV-3","BORGES","B",2004,"",112]
[135,null,5304,"SOLANS Vinyet","F","ESP","S21-2","BORGES","B",2002,"",112]
[136,null,1210,"TORREGROSA Laia","F","ESP","SEN","BORGES","A2",1988,"",112]
[null,null,"A","Poseu nom a observacions",null,null,null," "]
[null,null,"B","Poseu nom a observacions",null,null,null," "]
[null,null,"C","Poseu nom a observacions",null,null,null," "]
[null,null,"E","Poseu nom a observacions",null,null,null," "]
[null,null,"F","Poseu nom a observacions",null,null,null," "]
[null,null,"X","Poseu nom a observacions",null,null,null," "]
[null,null,"Y","Poseu nom a observacions",null,null,null," "]
[null,null,"Z","Poseu nom a observacions",null,null,null," "]
[null,null,"V","Poseu nom a observacions",null,null,null," "]
[null,null,"W","Poseu nom a observacions",null,null,null," "]

{"sheet":"NO ALINEABLES","index":4,"n_rows":0,"n_cols":0,"rows_kept":0,"cut":false,"hidden":true,"merged":[]}

{"sheet":"equips","index":5,"n_rows":14,"n_cols":5,"rows_kept":14,"cut":false,"hidden":true,"merged":[]}
["equips fix 2022/2023"]
["EQ","EQUIP"]
[101,"REUS GANXETS A","GANXETA",101,"214"]
[102,"REUS GANXETS C","GANXETC",102,"214"]
[103,"REUS GANXETS B","GANXETB",103,"214"]
[104,"CTT CAMBRILS","CAMBRI",104,"162"]
[105,"CTT VILABLAREIX","VILABL",105,"101"]
[106,"CTT ATENEU 1882","ATEN82",106,"007"]
[107,"ICELAND -ELS 8 LA GARRIGA","ELS 8",107,"025"]
[108,"CTT AMICS TERRASSA","AMICS",108,"024"]
[109,"CTT VILANOVA","VILANO",109,"068"]
[110,"VILASSAR DE MAR L'OBRERA","VILASS",110,"240"]
[111,"CN SABADELL","CNSABA",111,"076"]
[112,"BORGES ENVELATS VALL","BORGES",112,"133"]

{"sheet":"actescf.txt","index":6,"n_rows":173,"n_cols":8,"rows_kept":173,"cut":false,"hidden":true,"merged":[]}
["actescf.txt","Temp.22/23","2022-09-20T18:20:12.790"]
["ACTA","DIA DE JOC","HORA","EQ1","EQUIP LOCAL","EQ2","EQUIP VISITANT","SEU"]
["C1S1E1","2022-10-15","10:00 h",101,"REUS GANXETS A",105,"CTT VILABLAREIX","ATENEU 1882"]
["C1S1E2","2022-10-15","10:00 h",102,"REUS GANXETS C",106,"CTT ATENEU 1882","ATENEU 1882"]
["C1S1E3","2022-10-15","10:00 h",103,"REUS GANXETS B",107,"ICELAND -ELS 8 LA GARRIGA","ATENEU 1882"]
["C1S1E4","2022-10-15","10:00 h",104,"CTT CAMBRILS",108,"CTT AMICS TERRASSA","ATENEU 1882"]
["C1S2E1","2022-10-15","12:00 h",101,"REUS GANXETS A",106,"CTT ATENEU 1882","ATENEU 1882"]
["C1S2E2","2022-10-15","12:00 h",102,"REUS GANXETS C",107,"ICELAND -ELS 8 LA GARRIGA","ATENEU 1882"]
["C1S2E3","2022-10-15","12:00 h",103,"REUS GANXETS B",108,"CTT AMICS TERRASSA","ATENEU 1882"]
["C1S2E4","2022-10-15","12:00 h",104,"CTT CAMBRILS",105,"CTT VILABLAREIX","ATENEU 1882"]
["C1S3E1","2022-10-15","16:00 h",101,"REUS GANXETS A",107,"ICELAND -ELS 8 LA GARRIGA","ATENEU 1882"]
["C1S3E2","2022-10-15","16:00 h",102,"REUS GANXETS C",108,"CTT AMICS TERRASSA","ATENEU 1882"]
["C1S3E3","2022-10-15","16:00 h",103,"REUS GANXETS B",105,"CTT VILABLAREIX","ATENEU 1882"]
["C1S3E4","2022-10-15","16:00 h",104,"CTT CAMBRILS",106,"CTT ATENEU 1882","ATENEU 1882"]
["C1S4E1","2022-10-15","18:00 h",101,"REUS GANXETS A",108,"CTT AMICS TERRASSA","ATENEU 1882"]
["C1S4E2","2022-10-15","18:00 h",102,"REUS GANXETS C",105,"CTT VILABLAREIX","ATENEU 1882"]
["C1S4E3","2022-10-15","18:00 h",103,"REUS GANXETS B",106,"CTT ATENEU 1882","ATENEU 1882"]
["C1S4E4","2022-10-15","18:00 h",104,"CTT CAMBRILS",107,"ICELAND -ELS 8 LA GARRIGA","ATENEU 1882"]
[]
[]
["ACTA","DIA DE JOC","HORA","EQ1","EQUIP LOCAL","EQ2","EQUIP VISITANT","CTT VILANOVA"]
["C1S1E5","2022-10-15","10:00 h",109,"CTT VILANOVA",110,"VILASSAR DE MAR L'OBRERA","CTT VILANOVA"]
["C1S1E6","2022-10-15","10:00 h",111,"CN SABADELL",112,"BORGES ENVELATS VALL","CTT VILANOVA"]
["C1S2E5","2022-10-15","12:00 h",109,"CTT VILANOVA",111,"CN SABADELL","CTT VILANOVA"]
["C1S2E6","2022-10-15","12:00 h",110,"VILASSAR DE MAR L'OBRERA",112,"BORGES ENVELATS VALL","CTT VILANOVA"]
["C1S3E5","2022-10-15","16:00 h",109,"CTT VILANOVA",112,"BORGES ENVELATS VALL","CTT VILANOVA"]
["C1S3E6","2022-10-15","16:00 h",110,"VILASSAR DE MAR L'OBRERA",111,"CN SABADELL","CTT VILANOVA"]
[]
[]
["ACTA","DIA DE JOC","HORA","EQ1","EQUIP LOCAL","EQ2","EQUIP VISITANT","CTT BORGES"]
["C2S1E1","2022-11-05","10:00 h",101,"REUS GANXETS A",109,"CTT VILANOVA","CTT BORGES"]
["C2S1E2","2022-11-05","10:00 h",102,"REUS GANXETS C",110,"VILASSAR DE MAR L'OBRERA","CTT BORGES"]
["C2S1E3","2022-11-05","10:00 h",103,"REUS GANXETS B",111,"CN SABADELL","CTT BORGES"]
["C2S1E4","2022-11-05","10:00 h",104,"CTT CAMBRILS",112,"BORGES ENVELATS VALL","CTT BORGES"]
["C2S2E1","2022-11-05","12:00 h",101,"REUS GANXETS A",110,"VILASSAR DE MAR L'OBRERA","CTT BORGES"]
["C2S2E2","2022-11-05","12:00 h",102,"REUS GANXETS C",111,"CN SABADELL","CTT BORGES"]
["C2S2E3","2022-11-05","12:00 h",103,"REUS GANXETS B",112,"BORGES ENVELATS VALL","CTT BORGES"]
["C2S2E4","2022-11-05","12:00 h",104,"CTT CAMBRILS",109,"CTT VILANOVA","CTT BORGES"]
["C2S3E1","2022-11-05","16:00 h",101,"REUS GANXETS A",111,"CN SABADELL","CTT BORGES"]
["C2S3E2","2022-11-05","16:00 h",102,"REUS GANXETS C",112,"BORGES ENVELATS VALL","CTT BORGES"]
["C2S3E3","2022-11-05","16:00 h",103,"REUS GANXETS B",109,"CTT VILANOVA","CTT BORGES"]
["C2S3E4","2022-11-05","16:00 h",104,"CTT CAMBRILS",110,"VILASSAR DE MAR L'OBRERA","CTT BORGES"]
["C2S4E1","2022-11-05","18:00 h",101,"REUS GANXETS A",112,"BORGES ENVELATS VALL","CTT BORGES"]
["C2S4E2","2022-11-05","18:00 h",102,"REUS GANXETS C",109,"CTT VILANOVA","CTT BORGES"]
["C2S4E3","2022-11-05","18:00 h",103,"REUS GANXETS B",110,"VILASSAR DE MAR L'OBRERA","CTT BORGES"]
["C2S4E4","2022-11-05","18:00 h",104,"CTT CAMBRILS",111,"CN SABADELL","CTT BORGES"]
[]
[]
["ACTA","DIA DE JOC","HORA","EQ1","EQUIP LOCAL","EQ2","EQUIP VISITANT","CTT BORGES"]
["C2S1E5","2022-11-05","10:00 h",105,"CTT VILABLAREIX",106,"CTT ATENEU 1882","CTT BORGES"]
["C2S1E6","2022-11-05","10:00 h",107,"ICELAND -ELS 8 LA GARRIGA",108,"CTT AMICS TERRASSA","CTT BORGES"]
["C2S2E5","2022-11-05","12:00 h",105,"CTT VILABLAREIX",107,"ICELAND -ELS 8 LA GARRIGA","CTT BORGES"]
["C2S2E6","2022-11-05","12:00 h",106,"CTT ATENEU 1882",108,"CTT AMICS TERRASSA","CTT BORGES"]
["C2S3E5","2022-11-05","16:00 h",105,"CTT VILABLAREIX",108,"CTT AMICS TERRASSA","CTT BORGES"]
["C2S3E6","2022-11-05","16:00 h",106,"CTT ATENEU 1882",107,"ICELAND -ELS 8 LA GARRIGA","CTT BORGES"]
[null,"COPA CATALANA FEMENINA -T/22-23"]
[]
[]
[]
[]
["ACTA","DIA DE JOC","HORA","EQ1","EQUIP LOCAL","EQ2","EQUIP VISITANT","ELS AMICS DE TERRASSA"]
["C3S1E1","2023-01-28","10:00 h",105,"CTT VILABLAREIX",109,"CTT VILANOVA","ELS AMICS DE TERRASSA"]
["C3S1E2","2023-01-28","10:00 h",106,"CTT ATENEU 1882",110,"VILASSAR DE MAR L'OBRERA","ELS AMICS DE TERRASSA"]
["C3S1E3","2023-01-28","10:00 h",107,"ICELAND -ELS 8 LA GARRIGA",111,"CN SABADELL","ELS AMICS DE TERRASSA"]
["C3S1E4","2023-01-28","10:00 h",108,"CTT AMICS TERRASSA",112,"BORGES ENVELATS VALL","ELS AMICS DE TERRASSA"]
["C3S2E1","2023-01-28","12:00 h",105,"CTT VILABLAREIX",110,"VILASSAR DE MAR L'OBRERA","ELS AMICS DE TERRASSA"]
["C3S2E2","2023-01-28","12:00 h",106,"CTT ATENEU 1882",111,"CN SABADELL","ELS AMICS DE TERRASSA"]
["C3S2E3","2023-01-28","12:00 h",107,"ICELAND -ELS 8 LA GARRIGA",112,"BORGES ENVELATS VALL","ELS AMICS DE TERRASSA"]
["C3S2E4","2023-01-28","12:00 h",108,"CTT AMICS TERRASSA",109,"CTT VILANOVA","ELS AMICS DE TERRASSA"]
["C3S3E1","2023-01-28","16:00 h",105,"CTT VILABLAREIX",111,"CN SABADELL","ELS AMICS DE TERRASSA"]
["C3S3E2","2023-01-28","16:00 h",106,"CTT ATENEU 1882",112,"BORGES ENVELATS VALL","ELS AMICS DE TERRASSA"]
["C3S3E3","2023-01-28","16:00 h",107,"ICELAND -ELS 8 LA GARRIGA",109,"CTT VILANOVA","ELS AMICS DE TERRASSA"]
["C3S3E4","2023-01-28","16:00 h",108,"CTT AMICS TERRASSA",110,"VILASSAR DE MAR L'OBRERA","ELS AMICS DE TERRASSA"]
["C3S4E1","2023-01-28","18:00 h",105,"CTT VILABLAREIX",112,"BORGES ENVELATS VALL","ELS AMICS DE TERRASSA"]
["C3S4E2","2023-01-28","18:00 h",106,"CTT ATENEU 1882",109,"CTT VILANOVA","ELS AMICS DE TERRASSA"]
["C3S4E3","2023-01-28","18:00 h",107,"ICELAND -ELS 8 LA GARRIGA",110,"VILASSAR DE MAR L'OBRERA","ELS AMICS DE TERRASSA"]
["C3S4E4","2023-01-28","18:00 h",108,"CTT AMICS TERRASSA",111,"CN SABADELL","ELS AMICS DE TERRASSA"]
[]
[]
["ACTA","DIA DE JOC","HORA","EQ1","EQUIP LOCAL","EQ2","EQUIP VISITANT","CTT GANXETS"]
["C3S1E5","2023-01-28","10:00 h",101,"REUS GANXETS A",102,"REUS GANXETS C","CTT GANXETS"]
["C3S1E6","2023-01-28","10:00 h",103,"REUS GANXETS B",104,"CTT CAMBRILS","CTT GANXETS"]
["C3S2E5","2023-01-28","12:00 h",101,"REUS GANXETS A",103,"REUS GANXETS B","CTT GANXETS"]
["C3S2E6","2023-01-28","12:00 h",102,"REUS GANXETS C",104,"CTT CAMBRILS","CTT GANXETS"]
["C3S3E5","2023-01-28","16:00 h",101,"REUS GANXETS A",104,"CTT CAMBRILS","CTT GANXETS"]
["C3S3E6","2023-01-28","16:00 h",102,"REUS GANXETS C",103,"REUS GANXETS B","CTT GANXETS"]
[]
[]
["ACTA","DIA DE JOC","HORA","EQ1","EQUIP LOCAL","EQ2","EQUIP VISITANT","ELS AMICS DE TERRASSA"]
["C4S1E1","2023-02-25","10:00 h",105,"CTT VILABLAREIX",101,"REUS GANXETS A","ELS AMICS DE TERRASSA"]
["C4S1E2","2023-02-25","10:00 h",106,"CTT ATENEU 1882",102,"REUS GANXETS C","ELS AMICS DE TERRASSA"]
["C4S1E3","2023-02-25","10:00 h",107,"ICELAND -ELS 8 LA GARRIGA",103,"REUS GANXETS B","ELS AMICS DE TERRASSA"]
["C4S1E4","2023-02-25","10:00 h",108,"CTT AMICS TERRASSA",104,"CTT CAMBRILS","ELS AMICS DE TERRASSA"]
["C4S2E1","2023-02-25","12:00 h",106,"CTT ATENEU 1882",101,"REUS GANXETS A","ELS AMICS DE TERRASSA"]
["C4S2E2","2023-02-25","12:00 h",107,"ICELAND -ELS 8 LA GARRIGA",102,"REUS GANXETS C","ELS AMICS DE TERRASSA"]
["C4S2E3","2023-02-25","12:00 h",108,"CTT AMICS TERRASSA",103,"REUS GANXETS B","ELS AMICS DE TERRASSA"]
["C4S2E4","2023-02-25","12:00 h",105,"CTT VILABLAREIX",104,"CTT CAMBRILS","ELS AMICS DE TERRASSA"]
["C4S3E1","2023-02-25","16:00 h",107,"ICELAND -ELS 8 LA GARRIGA",101,"REUS GANXETS A","ELS AMICS DE TERRASSA"]
["C4S3E2","2023-02-25","16:00 h",108,"CTT AMICS TERRASSA",102,"REUS GANXETS C","ELS AMICS DE TERRASSA"]
["C4S3E3","2023-02-25","16:00 h",105,"CTT VILABLAREIX",103,"REUS GANXETS B","ELS AMICS DE TERRASSA"]
["C4S3E4","2023-02-25","16:00 h",106,"CTT ATENEU 1882",104,"CTT CAMBRILS","ELS AMICS DE TERRASSA"]
["C4S4E1","2023-02-25","18:00 h",108,"CTT AMICS TERRASSA",101,"REUS GANXETS A","ELS AMICS DE TERRASSA"]
["C4S4E2","2023-02-25","18:00 h",105,"CTT VILABLAREIX",102,"REUS GANXETS C","ELS AMICS DE TERRASSA"]
["C4S4E3","2023-02-25","18:00 h",106,"CTT ATENEU 1882",103,"REUS GANXETS B","ELS AMICS DE TERRASSA"]
["C4S4E4","2023-02-25","18:00 h",107,"ICELAND -ELS 8 LA GARRIGA",104,"CTT CAMBRILS","ELS AMICS DE TERRASSA"]
[]
[]
["ACTA","DIA DE JOC","HORA","EQ1","EQUIP LOCAL","EQ2","EQUIP VISITANT","CTT VILANOVA"]
["C4S1E5","2023-02-25","10:00 h",110,"VILASSAR DE MAR L'OBRERA",109,"CTT VILANOVA","CTT VILANOVA"]
["C4S1E6","2023-02-25","10:00 h",112,"BORGES ENVELATS VALL",111,"CN SABADELL","CTT VILANOVA"]
["C4S2E5","2023-02-25","12:00 h",111,"CN SABADELL",109,"CTT VILANOVA","CTT VILANOVA"]
["C4S2E6","2023-02-25","12:00 h",112,"BORGES ENVELATS VALL",110,"VILASSAR DE MAR L'OBRERA","CTT VILANOVA"]
["C4S3E5","2023-02-25","16:00 h",112,"BORGES ENVELATS VALL",109,"CTT VILANOVA","CTT VILANOVA"]
["C4S3E6","2023-02-25","16:00 h",111,"CN SABADELL",110,"VILASSAR DE MAR L'OBRERA","CTT VILANOVA"]
[null,"COPA CATALANA FEMENINA -T/22-23"]
[]
[]
[]
[]
["ACTA","DIA DE JOC","HORA","EQ1","EQUIP LOCAL","EQ2","EQUIP VISITANT","CN SABADELL"]
["C5S1E1","2023-04-15","10:00 h",109,"CTT VILANOVA",101,"REUS GANXETS A","CN SABADELL"]
["C5S1E2","2023-04-15","10:00 h",110,"VILASSAR DE MAR L'OBRERA",102,"REUS GANXETS C","CN SABADELL"]
["C5S1E3","2023-04-15","10:00 h",111,"CN SABADELL",103,"REUS GANXETS B","CN SABADELL"]
["C5S1E4","2023-04-15","10:00 h",112,"BORGES ENVELATS VALL",104,"CTT CAMBRILS","CN SABADELL"]
["C5S2E1","2023-04-15","12:00 h",110,"VILASSAR DE MAR L'OBRERA",101,"REUS GANXETS A","CN SABADELL"]
["C5S2E2","2023-04-15","12:00 h",111,"CN SABADELL",102,"REUS GANXETS C","CN SABADELL"]
["C5S2E3","2023-04-15","12:00 h",112,"BORGES ENVELATS VALL",103,"REUS GANXETS B","CN SABADELL"]
["C5S2E4","2023-04-15","12:00 h",109,"CTT VILANOVA",104,"CTT CAMBRILS","CN SABADELL"]
["C5S3E1","2023-04-15","16:00 h",111,"CN SABADELL",101,"REUS GANXETS A","CN SABADELL"]
["C5S3E2","2023-04-15","16:00 h",112,"BORGES ENVELATS VALL",102,"REUS GANXETS C","CN SABADELL"]
["C5S3E3","2023-04-15","16:00 h",109,"CTT VILANOVA",103,"REUS GANXETS B","CN SABADELL"]
["C5S3E4","2023-04-15","16:00 h",110,"VILASSAR DE MAR L'OBRERA",104,"CTT CAMBRILS","CN SABADELL"]
["C5S4E1","2023-04-15","18:00 h",112,"BORGES ENVELATS VALL",101,"REUS GANXETS A","CN SABADELL"]
["C5S4E2","2023-04-15","18:00 h",109,"CTT VILANOVA",102,"REUS GANXETS C","CN SABADELL"]
["C5S4E3","2023-04-15","18:00 h",110,"VILASSAR DE MAR L'OBRERA",103,"REUS GANXETS B","CN SABADELL"]
["C5S4E4","2023-04-15","18:00 h",111,"CN SABADELL",104,"CTT CAMBRILS","CN SABADELL"]
[]
[]
["ACTA","DIA DE JOC","HORA","EQ1","EQUIP LOCAL","EQ2","EQUIP VISITANT","TT ELS 8 DE LA GARRIGA"]
["C5S1E5","2023-04-15","10:00 h",106,"CTT ATENEU 1882",105,"CTT VILABLAREIX","TT ELS 8 DE LA GARRIGA"]
["C5S1E6","2023-04-15","10:00 h",108,"CTT AMICS TERRASSA",107,"ICELAND -ELS 8 LA GARRIGA","TT ELS 8 DE LA GARRIGA"]
["C5S2E5","2023-04-15","12:00 h",107,"ICELAND -ELS 8 LA GARRIGA",105,"CTT VILABLAREIX","TT ELS 8 DE LA GARRIGA"]
["C5S2E6","2023-04-15","12:00 h",108,"CTT AMICS TERRASSA",106,"CTT ATENEU 1882","TT ELS 8 DE LA GARRIGA"]
["C5S3E5","2023-04-15","16:00 h",108,"CTT AMICS TERRASSA",105,"CTT VILABLAREIX","TT ELS 8 DE LA GARRIGA"]
["C5S3E6","2023-04-15","16:00 h",107,"ICELAND -ELS 8 LA GARRIGA",106,"CTT ATENEU 1882","TT ELS 8 DE LA GARRIGA"]
[]
[]
["ACTA","DIA DE JOC","HORA","EQ1","EQUIP LOCAL","EQ2","EQUIP VISITANT","ATENEU 1882"]
["C6S1E1","2023-04-22","10:00 h",109,"CTT VILANOVA",105,"CTT VILABLAREIX","ATENEU 1882"]
["C6S1E2","2023-04-22","10:00 h",110,"VILASSAR DE MAR L'OBRERA",106,"CTT ATENEU 1882","ATENEU 1882"]
["C6S1E3","2023-04-22","10:00 h",111,"CN SABADELL",107,"ICELAND -ELS 8 LA GARRIGA","ATENEU 1882"]
["C6S1E4","2023-04-22","10:00 h",112,"BORGES ENVELATS VALL",108,"CTT AMICS TERRASSA","ATENEU 1882"]
["C6S2E1","2023-04-22","12:00 h",110,"VILASSAR DE MAR L'OBRERA",105,"CTT VILABLAREIX","ATENEU 1882"]
["C6S2E2","2023-04-22","12:00 h",111,"CN SABADELL",106,"CTT ATENEU 1882","ATENEU 1882"]
["C6S2E3","2023-04-22","12:00 h",112,"BORGES ENVELATS VALL",107,"ICELAND -ELS 8 LA GARRIGA","ATENEU 1882"]
["C6S2E4","2023-04-22","12:00 h",109,"CTT VILANOVA",108,"CTT AMICS TERRASSA","ATENEU 1882"]
["C6S3E1","2023-04-22","16:00 h",111,"CN SABADELL",105,"CTT VILABLAREIX","ATENEU 1882"]
["C6S3E2","2023-04-22","16:00 h",112,"BORGES ENVELATS VALL",106,"CTT ATENEU 1882","ATENEU 1882"]
["C6S3E3","2023-04-22","16:00 h",109,"CTT VILANOVA",107,"ICELAND -ELS 8 LA GARRIGA","ATENEU 1882"]
["C6S3E4","2023-04-22","16:00 h",110,"VILASSAR DE MAR L'OBRERA",108,"CTT AMICS TERRASSA","ATENEU 1882"]
["C6S4E1","2023-04-22","18:00 h",112,"BORGES ENVELATS VALL",105,"CTT VILABLAREIX","ATENEU 1882"]
["C6S4E2","2023-04-22","18:00 h",109,"CTT VILANOVA",106,"CTT ATENEU 1882","ATENEU 1882"]
["C6S4E3","2023-04-22","18:00 h",110,"VILASSAR DE MAR L'OBRERA",107,"ICELAND -ELS 8 LA GARRIGA","ATENEU 1882"]
["C6S4E4","2023-04-22","18:00 h",111,"CN SABADELL",108,"CTT AMICS TERRASSA","ATENEU 1882"]
[]
[]
["ACTA","DIA DE JOC","HORA","EQ1","EQUIP LOCAL","EQ2","EQUIP VISITANT","CTT GANXETS"]
["C6S1E5","2023-04-22","10:00 h",102,"REUS GANXETS C",101,"REUS GANXETS A","CTT GANXETS"]
["C6S1E6","2023-04-22","10:00 h",104,"CTT CAMBRILS",103,"REUS GANXETS B","CTT GANXETS"]
["C6S2E5","2023-04-22","12:00 h",103,"REUS GANXETS B",101,"REUS GANXETS A","CTT GANXETS"]
["C6S2E6","2023-04-22","12:00 h",104,"CTT CAMBRILS",102,"REUS GANXETS C","CTT GANXETS"]
["C6S3E5","2023-04-22","16:00 h",104,"CTT CAMBRILS",101,"REUS GANXETS A","CTT GANXETS"]
["C6S3E6","2023-04-22","18:00 h",103,"REUS GANXETS B",102,"REUS GANXETS C","CTT GANXETS"]